{"text_format":"1","workbook":"xlsx","n_sheets":11,"sheets":["LDC Info","Index","COS Flowchart","List of Key References","App.2-FA Proposed REG Invest.","App.2-FB Calc of REG Improvemnt","App.2-FC Calc of REG Expansion","App.2-W_Bill Impacts_hidden","lists","lists2","Sheet19"],"not_rendered":{"charts":0,"images":4,"macros":1,"external_links":6,"defined_names":169,"comments":1,"pivot_tables":0},"unopened":[],"bounds":{"document_bytes":16777216,"sheet_cells":100000,"rows_first":2000,"rows_last":500,"rows_between":2000,"halvings":0,"cell_chars":16384,"cell_head_chars":4096},"cells_cut":0,"cells_raw":0,"read":"whole","date_system":"1900"}

{"sheet":"LDC Info","index":0,"n_rows":78,"n_cols":27,"rows_kept":78,"cut":false,"hidden":false,"merged":[[17,4,17,10],[13,4,13,10],[15,4,15,8],[19,4,19,8],[25,4,25,6],[23,4,23,6],[27,4,27,6],[30,4,30,6],[29,0,30,3],[42,0,43,3],[38,0,39,3],[39,4,39,6],[32,0,33,3],[33,4,33,6],[35,0,36,3],[45,4,45,6],[45,0,45,3],[50,2,50,11],[54,2,54,12],[52,2,52,13]]}
[]
[]
[null,null,null,null,null,null,null,null,null,null,null,null,null,null,null,null,null,null,null,null,null,null,null,null,null,null,"Algoma Power Inc."]
[null,null,null,null,null,null,null,null,null,null,null,null,null,null,null,null,null,null,null,null,null,null,null,null,null,null,"Atikokan Hydro Inc."]
[null,null,null,null,null,null,null,null,null,null,null,null,null,null,null,null,null,null,null,null,null,null,null,null,null,null,"Attawapiskat Power Corporation"]
[null,null,null,null,null,null,null,null,null,null,null,null,null,null,null,null,null,null,null,null,null,null,null,null,null,null,"Bluewater Power Distribution Corporation"]
[null,null,null,null,null,null,null,null,null,null,null,null,null,null,null,null,null,null,null,null,null,null,null,null,null,null,"Brant County Power Inc."]
[null,null,null,null,null,null,null,null,null,null,null,null,null,null,null,null,null,null,null,null,null,null,null,null,null,null,"Brantford Power Inc."]
[null,null,null,null,null,null,null,null,null,null,null,null,null,null,null,null,null,null,null,null,null,null,null,null,null,null,"Burlington Hydro Inc."]
[null,null,null,null,null,null,null,null,null,null,null,null,null,null,null,null,null,null,null,null,null,null,null,null,null,null,"Cambridge and North Dumfries Hydro Inc."]
[null,null,null,null,null,null,null,null,null,null,null,null,null,null,null,null,null,null,null,null,null,null,null,null,null,null,"Canadian Niagara Power Inc."]
[null,null,null,null,null,null,null,null,null,null,null,null,null,null,null,null,null,null,null,null,null,null,null,null,null,null,"Centre Wellington Hydro Ltd."]
[null,null,null,null,null,null,null,null,null,null,null,null,null,null,null,null,null,null,null,null,null,null,null,null,null,null,"Chapleau Public Utilities Corporation"]
[null,null,null,"Utility Name   ","Waterloo North Hydro Inc.",null,null,null,null,null,null,null,null,null,null,null,null,null,null,null,null,null,null,null,null,null,"COLLUS PowerStream Corp."]
[null,null,null,null,null,null,null,null,null,null,null,null,null,null,null,null,null,null,null,null,null,null,null,null,null,null,"Cooperative Hydro Embrun Inc."]
[null,null,null,"Assigned EB Number","EB-2015-0108",null,null,null,null,null,null,null,null,null,null,null,null,null,null,null,null,null,null,null,null,null,"E.L.K. Energy Inc."]
[null,null,null,null,null,null,null,null,null,null,null,null,null,null,null,null,null,null,null,null,null,null,null,null,null,null,"Enersource Hydro Mississauga Inc."]
[null,null,null,"Name of Contact and Title","Albert P. Singh",null,null,null,null,null,null,null,null,null,null,null,null,null,null,null,null,null,null,null,null,null,"Entegrus Powerlines Inc."]
[null,null,null,null,null,null,null,null,null,null,null,null,null,null,null,null,null,null,null,null,null,null,null,null,null,null,"EnWin Utilities Ltd."]
[null,null,null,"Phone Number   ","519-888-5542",null,null,null,null,null,null,null,null,null,null,null,null,null,null,null,null,null,null,null,null,null,"Erie Thames Powerlines Corporation"]
[null,null,null,null,null,null,null,null,null,null,null,null,null,null,null,null,null,null,null,null,null,null,null,null,null,null,"Espanola Regional Hydro Distribution Corporation"]
[null,null,null,"Email Address   ","asingh@wnhydro.com",null,null,null,null,null,null,null,null,null,null,null,null,null,null,null,null,null,null,null,null,null,"Essex Powerlines Corporation"]
[null,null,null,null,null,null,null,null,null,null,null,null,null,null,null,null,null,null,null,null,null,null,null,null,null,null,"Festival Hydro Inc."]
[null,null,null,"Test Year",2016,null,null,null,null,null,null,null,null,null,null,null,null,null,null,null,null,null,null,null,null,null,"Fort Albany Power Corporation"]
[null,null,null,null,null,null,null,null,null,null,null,null,null,null,null,null,null,null,null,null,null,null,null,null,null,null,"Fort Frances Power Corporation"]
[null,null,null,"Bridge Year",{"$f":"IF(ISBLANK(E24), \"\", E24-1)","v":2015},null,null,null,null,null,null,null,null,null,null,null,null,null,null,null,null,null,null,null,null,null,"Greater Sudbury Hydro Inc."]
[null,null,null,null,null,null,null,null,null,null,null,null,null,null,null,null,null,null,null,null,null,null,null,null,null,null,"Grimsby Power Inc."]
[null,null,null,"Last Rebasing Year",2011,null,null,null,null,null,null,null,null,null,null,null,null,null,null,null,null,null,null,null,null,null,"Guelph Hydro Electric Systems Inc."]
[null,null,null,null,null,null,null,null,null,null,null,null,null,null,null,null,null,null,null,null,null,null,null,null,null,null,"Haldimand County Hydro Inc."]
["Identify the accounting standard used for the test year",null,null,null,null,null,null,null,null,null,null,null,null,null,null,null,null,null,null,null,null,null,null,null,null,null,"Halton Hills Hydro Inc."]
[null,null,null,null,"MIFRS",null,null,null,null,null,null,null,null,null,null,null,null,null,null,null,null,null,null,null,null,null,"Hearst Power Distribution Company Limited"]
[null,null,null,null,null,null,null,null,null,null,null,null,null,null,null,null,null,null,null,null,null,null,null,null,null,null,"Horizon Utilities Corporation"]
["Did you update your depreciation and capitalization policies?",null,null,null,null,null,null,null,null,null,null,null,null,null,null,null,null,null,null,null,null,null,null,null,null,null,"Hydro 2000 Inc."]
[null,null,null,null,"Yes",null,null,null,null,null,null,null,null,null,null,null,null,null,null,null,null,null,null,null,null,null,"Hydro Hawkesbury Inc."]
[null,null,null,null,null,null,null,null,null,null,null,null,null,null,null,null,null,null,null,null,null,null,null,null,null,null,"Hydro One Brampton Networks Inc."]
["When did you update your depreciation and capitalization policies?",null,null,null,null,null,null,null,null,null,null,null,null,null,null,null,null,null,null,null,null,null,null,null,null,null,"Hydro One Networks Inc."]
[null,null,null,null,"2001-01-01",2013,null,null,null,null,null,null,null,null,null,null,null,null,null,null,null,null,null,null,null,null,"Hydro One Remote Communities Inc."]
[null,null,null,null,null,null,null,null,null,null,null,null,null,null,null,null,null,null,null,null,null,null,null,null,null,null,"Hydro Ottawa Limited"]
["Identify the year that the applicant has adopted or is expected to adopt IFRS for financial reporting purposes",null,null,null,null,null,null,null,null,null,null,null,null,null,null,null,null,null,null,null,null,null,null,null,null,null,"Innpower Corporation"]
[null,null,null,null,"2015 or Later",null,null,null,null,null,null,null,null,null,null,null,null,null,null,null,null,null,null,null,null,null,"Kashechewan Power Corporation"]
[null,null,null,null,null,null,null,null,null,null,null,null,null,null,null,null,null,null,null,null,null,null,null,null,null,null,"Kenora Hydro Electric Corporation Ltd."]
[null,null,null,null,null,null,null,null,null,null,null,null,null,null,null,null,null,null,null,null,null,null,null,null,null,null,"Kingston Hydro Corporation"]
["Are you applying for cost recovery for the test and/or future year(s) for Green Energy initiatives?",null,null,null,null,null,null,null,null,null,null,null,null,null,null,null,null,null,null,null,null,null,null,null,null,null,"Kitchener-Wilmot Hydro Inc."]
[null,null,null,null,"No",null,null,null,null,null,null,null,null,null,null,null,null,null,null,null,null,null,null,null,null,null,"Lakefront Utilities Inc."]
[null,null,null,null,null,null,null,null,null,null,null,null,null,null,null,null,null,null,null,null,null,null,null,null,null,null,"Lakeland Power Distribution Ltd."]
[{"$f":"\"Is \" & E14 & \" an embedded distributor?\"","v":"Is Waterloo North Hydro Inc. an embedded distributor?"},null,null,null,"Yes",null,null,null,null,null,null,null,null,null,null,null,null,null,null,null,null,null,null,null,null,null,"London Hydro Inc."]
[null,null,null,null,null,null,null,null,null,null,null,null,null,null,null,null,null,null,null,null,null,null,null,null,null,null,"Midland Power Utility Corporation"]
[null,null,null,null,null,null,null,null,null,null,null,null,null,null,null,null,null,null,null,null,null,null,null,null,null,null,"Milton Hydro Distribution Inc."]
[null,"Notes",null,null,null,null,null,null,null,null,null,null,null,null,null,null,null,null,null,null,null,null,null,null,null,null,"Newmarket-Tay Power Distribution Ltd."]
[null,null,null,null,null,null,null,null,null,null,null,null,null,null,null,null,null,null,null,null,null,null,null,null,null,null,"Niagara Peninsula Energy Inc."]
[null,null,"Pale green cells represent input cells.",null,null,null,null,null,null,null,null,null,null,null,null,null,null,null,null,null,null,null,null,null,null,null,"Niagara-on-the-Lake Hydro Inc."]
[null,null,null,null,null,null,null,null,null,null,null,null,null,null,null,null,null,null,null,null,null,null,null,null,null,null,"Norfolk Power Distribution Inc."]
[null,null,"Pale blue cells represent drop-down lists.  The applicant should select the appropriate item from the drop-down list.",null,null,null,null,null,null,null,null,null,null,null,null,null,null,null,null,null,null,null,null,null,null,null,"North Bay Hydro Distribution Limited"]
[null,null,null,null,null,null,null,null,null,null,null,null,null,null,null,null,null,null,null,null,null,null,null,null,null,null,"Northern Ontario Wires Inc."]
[null,null,"White cells contain fixed values, automatically generated values or formulae. ",null,null,null,null,null,null,null,null,null,null,null,null,null,null,null,null,null,null,null,null,null,null,null,"Oakville Hydro Electricity Distribution Inc."]
[null,null,null,null,null,null,null,null,null,null,null,null,null,null,null,null,null,null,null,null,null,null,null,null,null,null,"Orangeville Hydro Limited"]
[null,null,null,null,null,null,null,null,null,null,null,null,null,null,null,null,null,null,null,null,null,null,null,null,null,null,"Orillia Power Distribution Corporation"]
[null,null,null,null,null,null,null,null,null,null,null,null,null,null,null,null,null,null,null,null,null,null,null,null,null,null,"Oshawa PUC Networks Inc."]
[null,null,null,null,null,null,null,null,null,null,null,null,null,null,null,null,null,null,null,null,null,null,null,null,null,null,"Ottawa River Power Corporation"]
[null,null,null,null,null,null,null,null,null,null,null,null,null,null,null,null,null,null,null,null,null,null,null,null,null,null,"Peterborough Distribution Incorporated"]
[null,null,null,null,null,null,null,null,null,null,null,null,null,null,null,null,null,null,null,null,null,null,null,null,null,null,"PowerStream Inc."]
[null,null,null,null,null,null,null,null,null,null,null,null,null,null,null,null,null,null,null,null,null,null,null,null,null,null,"PUC Distribution Inc."]
[null,null,null,null,null,null,null,null,null,null,null,null,null,null,null,null,null,null,null,null,null,null,null,null,null,null,"Renfrew Hydro Inc."]
[null,null,null,null,null,null,null,null,null,null,null,null,null,null,null,null,null,null,null,null,null,null,null,null,null,null,"Rideau St. Lawrence Distribution Inc."]
[null,null,null,null,null,null,null,null,null,null,null,null,null,null,null,null,null,null,null,null,null,null,null,null,null,null,"Sioux Lookout Hydro Inc."]
[null,null,null,null,null,null,null,null,null,null,null,null,null,null,null,null,null,null,null,null,null,null,null,null,null,null,"St. Thomas Energy Inc."]
[null,null,null,null,null,null,null,null,null,null,null,null,null,null,null,null,null,null,null,null,null,null,null,null,null,null,"Thunder Bay Hydro Electricity Distribution Inc."]
[null,null,null,null,null,null,null,null,null,null,null,null,null,null,null,null,null,null,null,null,null,null,null,null,null,null,"Tillsonburg Hydro Inc."]
[null,null,null,null,null,null,null,null,null,null,null,null,null,null,null,null,null,null,null,null,null,null,null,null,null,null,"Toronto Hydro-Electric System Limited"]
[null,null,null,null,null,null,null,null,null,null,null,null,null,null,null,null,null,null,null,null,null,null,null,null,null,null,"Veridian Connections Inc."]
[null,null,null,null,null,null,null,null,null,null,null,null,null,null,null,null,null,null,null,null,null,null,null,null,null,null,"Wasaga Distribution Inc."]
[null,null,null,null,null,null,null,null,null,null,null,null,null,null,null,null,null,null,null,null,null,null,null,null,null,null,"Waterloo North Hydro Inc."]
[null,null,null,null,null,null,null,null,null,null,null,null,null,null,null,null,null,null,null,null,null,null,null,null,null,null,"Welland Hydro-Electric System Corp."]
[null,null,null,null,null,null,null,null,null,null,null,null,null,null,null,null,null,null,null,null,null,null,null,null,null,null,"Wellington North Power Inc."]
[null,null,null,null,null,null,null,null,null,null,null,null,null,null,null,null,null,null,null,null,null,null,null,null,null,null,"West Coast Huron Energy Inc."]
[null,null,null,null,null,null,null,null,null,null,null,null,null,null,null,null,null,null,null,null,null,null,null,null,null,null,"Westario Power Inc."]
[null,null,null,null,null,null,null,null,null,null,null,null,null,null,null,null,null,null,null,null,null,null,null,null,null,null,"Whitby Hydro Electric Corporation"]
[null,null,null,null,null,null,null,null,null,null,null,null,null,null,null,null,null,null,null,null,null,null,null,null,null,null,"Woodstock Hydro Services Inc."]

{"sheet":"Index","index":1,"n_rows":42,"n_cols":6,"rows_kept":42,"cut":false,"hidden":false,"merged":[]}
[]
[]
[]
[]
[]
[]
[]
[]
[]
[]
[]
[]
[]
[]
[1,"LDC Information Sheet",null,null,28,"App.2-G: Service Reliability Indicators"]
[2,"Index",null,null,29,"App.2-H: Other Operating Revenue"]
[3,"Cost of Service Application Flowchart",null,null,30,"App.2-I: Load Forecast CDM Adjustment Workform"]
[4,"List of Key References",null,null,31,"App.2-IA:  Actual and Forecast Load and Customer Data"]
[5,"App.2-AA: Capital Projects Table",null,null,32,"App.2-JA: OM&A Summary Analysis"]
[6,"App.2-AB: Capital Expenditures",null,null,33,"App.2-JB: Recoverable OM&A Cost Driver Table"]
[7,"App. 2-AC: Customer Engagement Worksheet",null,null,34,"App.2-JC: OM&A Programs Table"]
[8,"App.2-B: General Accounting Instructions",null,null,35,"App.2-K: Employee Costs"]
[9,"App.2-BA: Fixed Asset Continuity Schedule",null,null,36,"App.2-L: Recoverable OM&A Cost per Customer and per FTE"]
[10,"Appendix 2-BB: Service Life Comparison",null,null,37,"App.2-M: Regulatory Costs Schedule"]
[11,"App.2-CA: 2012 Depreciation and Amortization Expense (Old CGAAP)",null,null,38,"App.2-N: Shared Servcies and Corporate Cost Allocation"]
[12,"App.2-CB: 2012 Depreciation and Amortization Expense (New CGAAP)",null,null,39,"App.2-OA: Capital Structure and Cost of Capital"]
[13,"App.2-CC: 2013 Depreciation and Amortization Expense (New CGAAP)",null,null,40,"App.2-OB: Debt Instruments"]
[14,"App.2-CD: 2014 Depreciation and Amortization Expense (MIFRS)",null,null,41,"App.2-P: Cost Allocation"]
[15,"App.2-CE: 2015 Depreciation and Amortization Expense (MIFRS)",null,null,42,"App.2-PA:  New Rate Design Policy For Residential Customers"]
[16,"App.2-CF: 2015 Depreciation and Amortization Expense (MIFRS)",null,null,43,"App.2-Q: Cost of Serving Embedded Distributor(s)"]
[17,"App.2-CG: 2013 Depreciation and Amortization Expense (Old CGAAP)",null,null,44,"App.2-R: Loss Factors"]
[18,"App.2-CH: 2013 Depreciation and Amortization Expense (New CGAAP)",null,null,45,"App.2-S: Stranded Meter Treatment"]
[19,"App.2-CI: 2014 Depreciation and Amortization Expense (MIFRS)",null,null,46,"App.2-TA: Account 1592, PILs and Tax Variances"]
[20,"App.2-CJ: 2015 Depreciation and Amortization Expense (MIFRS)",null,null,47,"App.2-TB: Account 1592, HST-OVAT Input Tax Credits"]
[21,"App.2-CK: 2016 Depreciation and Amortization Expense (MIFRS)",null,null,48,"App.2-U: One-Time Incremental IFRS Transition Costs"]
[22,"App.2-D: Overhead Expenses",null,null,49,"App.2-V: Revenue Reconciliation"]
[23,"App.2-EA: Account 1575 PP&E Deferral Account (2015 IFRS Adopters)",null,null,50,"App.2-W: Bill Impacts"]
[24,"App.2-EB: Account 1576 - Accounting Changes Under CGAAP (2012 Changes)",null,null,51,"App.2-Y: Transition to MIFRS Summary Impact"]
[25,"App.2-EC: Account 1576 - Accounting Changes Under CGAAP (2013 Changes)",null,null,52,"App. 2-Z: Tariff Schedule"]
[26,"App.2-FA: Renewable Generation Connection Investment Summary"]
[27,"App.2-FB: Calculation of Renewable Generation Connection Direct Benefits/Provincial Amount: Renewable Enabling Improvement Investments"]
[28,"App.2-FC: Calculation of Renewable Generation Connection Direct Benefits/Provincial Amount: Renewable Expansion Investments"]

{"sheet":"COS Flowchart","index":2,"n_rows":6,"n_cols":2,"rows_kept":6,"cut":false,"hidden":false,"merged":[[5,1,5,6],[2,1,2,6],[3,1,3,6]]}
[]
[]
[]
[null,"Cost of Service Rate Application Schematic"]
[]
[null,"The Cost of Service Rate Application Schematic is a flowchart appended to Chapter 2 of the Filing Requirements as a guide for the components of an application and how demand and costs interrelate to derive the revenue requirement and then how the revenue requirement is allocated between classes and through fixed/variable splits to derive rates that will be compensatory for the annual revenue requirement, based on the the forecasted demand.  There is no form to be filled out; therefore, this Schedule is not required to be filed. "]

{"sheet":"List of Key References","index":3,"n_rows":5,"n_cols":2,"rows_kept":5,"cut":false,"hidden":false,"merged":[[2,1,2,11],[4,0,4,11]]}
[]
[]
[null,"List of Key References"]
[]
["A list of key references for understanding the Filing Requirements has been embedded in the document below. To access the list of references and associated hyperlinks double-click the icon below."]

{"sheet":"App.2-FA Proposed REG Invest.","index":4,"n_rows":101,"n_cols":11,"rows_kept":101,"cut":false,"hidden":false,"merged":[[8,0,8,10],[17,0,17,8],[16,0,16,9],[12,0,12,6],[13,0,13,5],[14,0,14,5],[11,0,11,6],[9,0,9,10]]}
[null,null,null,null,null,null,null,null,null,"File Number:",{"$f":"EBNUMBER","v":"EB-2015-0108"}]
[null,null,null,null,null,null,null,null,null,"Exhibit:",9]
[null,null,null,null,null,null,null,null,null,"Tab:","9-Staff-149"]
[null,null,null,null,null,null,null,null,null,"Schedule:"]
[null,null,null,null,null,null,null,null,null,"Page:"]
[]
[null,null,null,null,null,null,null,null,null,"Date:","2015-08-07"]
[]
["Appendix 2-FA"]
["Renewable Generation Connection Investment Summary (past investments or over the future rate setting period)"]
[]
["Enter the details of the Renewable Generation Connection projects as described in the appropriate section of the Filing Requirements."]
["All costs entered on this page will be transferred to the appropriate cells in the appendices that follow."]
["For Part A, Renewable Enabling Improvements (REI), these amounts will be transferred to Appendix 2 - FB"]
["For Part B, Expansions, these amounts will be transferred to Appendix 2 - FC"]
[]
["If there are more than five projects proposed to be in-service in a certain year, please amend the tables below and ensure that the formulae for the Total Amounts in any given rate year are updated."]
["Based on the current methodology and allocation, amounts allocated represent 6% for REI Connection Investments and 17% for Expansion Investments. (EB-2009-0349, 6-10-2010, p. 15, note 9)"]
[]
["There are two scenarios described below.  Separate sets of spreadsheets (2-FA, 2-FB, 2-FC) should be submited for each scenario as required."]
["Scenario 1:  Past Investments with No Recovery.  The distributor has made investments in the past (during the IRM Years), but has not received approval for these projects and therefore did not receive"]
["revenue from the IESO under Regulation 330/09 and did not receive ratepayer revenue for the direct benefit portion of the investment."]
["The WCA percentage, debt percentages, interest rates, kWh, tax rates, amortization period, CCA Class and percentage should correspond to the distributor's last Cost of Service approval. "]
["The Direct Benefit portion of the calculated Revenue Requirement for each year should be summed and can be applied for recovery from the distributor's ratepayers through a rate rider."]
["The Provincial Recovery portion of the calculated Revenue Requirement for each year should be summed and can be applied for recovery from the IESO through a separate order."]
[]
["Scenario 2:  Investments in the Test Year and Beyond.  Distributor plans to make investments in 2016 and/or beyond.  These investments should be added to 2-FA in the appropriate year."]
["The WCA percentage, debt percentages, interest rates, kWh, tax rates, amortization period, CCA Class and percentage should correspond to the distributor's current application. "]
[]
["Part A",null,null,null,null,null,"Test Year"]
["REI Investments (Direct Benefit at 6%)",null,2012,2013,2014,2015,2016,{"$f":"G31+1","v":2017},{"$f":"H31+1","v":2018},2019,2020]
["Project 1"]
["Name: REI Connection Project"]
["Capital Costs",null,0,0,0,0,0,0,0,0,0]
["OM&A (Start-Up)",null,0,0,0,0,0,0,0,0,0]
["OM&A (Ongoing)",null,0,0,0,0,0,0,0,0,0]
[]
["Project 2"]
["Name: REI Connection Project"]
["Capital Costs",null,0,0,0,0,0,0,0,0,0]
["OM&A (Start-Up)",null,0,0,0,0,0,0,0,0,0]
["OM&A (Ongoing)",null,0,0,0,0,0,0,0,0,0]
[]
["Project 3"]
["Name: REI Connection Project"]
["Capital Costs",null,0,0,0,0,0,0,0,0,0]
["OM&A (Start-Up)",null,0,0,0,0,0,0,0,0,0]
["OM&A (Ongoing)",null,0,0,0,0,0,0,0,0,0]
[]
["Project 4"]
["Name: REI Connection Project"]
["Capital Costs",null,0,0,0,0,0,0,0,0,0]
["OM&A (Start-Up)",null,0,0,0,0,0,0,0,0,0]
["OM&A (Ongoing)",null,0,0,0,0,0,0,0,0,0]
[]
["Project 5"]
["Name: REI Connection Project"]
["Capital Costs",null,0,0,0,0,0,0,0,0,0]
["OM&A (Start-Up)",null,0,0,0,0,0,0,0,0,0]
["OM&A (Ongoing)",null,0,0,0,0,0,0,0,0,0]
[]
["Total Capital Costs",null,{"$f":"SUM(C58,C52,C46,C40,C34)","v":0},0,0,0,{"$f":"SUM(G58,G52,G46,G40,G34)","v":0},{"$f":"SUM(H58,H52,H46,H40,H34)","v":0},0,0,0]
["Total OM&A (Start-Up)",null,0,0,0,0,{"$f":"SUM(G59,G53,G47,G41,G35)","v":0},0,0,0,0]
["Total OM&A (Ongoing)",null,0,0,0,0,{"$f":"SUM(G60,G54,G48,G42,G36)","v":0},0,0,0,0]
[]
[]
["Part B",null,null,null,null,null,"Test Year"]
["Expansion Investments (Direct Benefit at 17%)",null,2012,2013,2014,2015,2016,{"$f":"G68+1","v":2017},{"$f":"H68+1","v":2018},2019,2020]
["Project 1"]
["Name: Expansion Connection Project"]
["Capital Costs",null,0,117320.21,0,0,0,0,0,0,0]
["OM&A (Start-Up)",null,0,0,0,0,0,0,0,0,0]
["OM&A (Ongoing)",null,0,0,0,0,0,0,0,0,0]
[]
["Project 2"]
["Name: Expansion Connection Project"]
["Capital Costs",null,0,0,0,0,0,0,0,0,0]
["OM&A (Start-Up)",null,0,0,0,0,0,0,0,0,0]
["OM&A (Ongoing)",null,0,0,0,0,0,0,0,0,0]
[]
["Project 3"]
["Name: Expansion Connection Project"]
["Capital Costs",null,0,0,0,0,0,0,0,0,0]
["OM&A (Start-Up)",null,0,0,0,0,0,0,0,0,0]
["OM&A (Ongoing)",null,0,0,0,0,0,0,0,0,0]
[]
["Project 4"]
["Name: Expansion Connection Project"]
["Capital Costs",null,0,0,0,0,0,0,0,0,0]
["OM&A (Start-Up)",null,0,0,0,0,0,0,0,0,0]
["OM&A (Ongoing)",null,0,0,0,0,0,0,0,0,0]
[]
["Project 5"]
["Name: Expansion Connection Project"]
["Capital Costs",null,0,0,0,0,0,0,0,0,0]
["OM&A (Start-Up)",null,0,0,0,0,0,0,0,0,0]
["OM&A (Ongoing)",null,0,0,0,0,0,0,0,0,0]
[]
["Total Capital Costs",null,{"$f":"SUM(C95,C89,C83,C77,C71)","v":0},117320.21,0,0,{"$f":"SUM(G95,G89,G83,G77,G71)","v":0},{"$f":"SUM(H95,H89,H83,H77,H71)","v":0},0,0,0]
["Total OM&A (Start-Up)",null,0,0,0,0,{"$f":"SUM(G96,G90,G84,G78,G72)","v":0},0,0,0,0]
["Total OM&A (Ongoing)",null,0,0,0,0,{"$f":"SUM(G97,G91,G85,G79,G73)","v":0},0,0,0,0]

{"sheet":"App.2-FB Calc of REG Improvemnt","index":5,"n_rows":95,"n_cols":29,"rows_kept":95,"cut":false,"hidden":false,"merged":[[16,26,16,28],[8,0,8,17],[9,0,9,17],[11,0,11,17],[12,0,12,17],[14,0,14,17],[46,0,46,22],[16,14,16,16],[16,17,16,19],[16,20,16,22],[16,23,16,25],[16,11,16,13],[16,8,16,10],[16,5,16,7],[16,2,16,4],[51,24,51,25],[51,27,51,28],[48,0,48,22],[49,0,49,1],[51,15,51,16],[51,18,51,19],[51,21,51,22],[51,12,51,13],[51,9,51,10],[51,6,51,7],[51,3,51,4]]}
[null,null,null,null,null,null,null,null,null,null,null,null,null,"File Number:",{"$f":"EBNUMBER","v":"EB-2015-0108"}]
[null,null,null,null,null,null,null,null,null,null,null,null,null,"Exhibit:"]
[null,null,null,null,null,null,null,null,null,null,null,null,null,"Tab:"]
[null,null,null,null,null,null,null,null,null,null,null,null,null,"Schedule:"]
[null,null,null,null,null,null,null,null,null,null,null,null,null,"Page:"]
[]
[null,null,null,null,null,null,null,null,null,null,null,null,null,"Date:"]
[]
["Appendix 2-FB"]
["Calculation of Renewable Generation Connection Direct Benefits/Provincial Amount: Renewable Enabling Improvement Investments"]
[]
["This table will calculate the distributor/provincial shares of the investments entered in Part A of Appendix 2-FA."]
["Enter values in green shaded cells: WCA percentage, debt percentages, interest rates, kWh, tax rates, amortization period, CCA Class and percentage."]
["For historical investments, enter these variables for your last cost of service test year.  For 2016 and beyond, enter variables as in the application."]
["Rate Riders are not calculated for Test Year as these assets and costs are already in the distributor's rate base/revenue requirement."]
[]
[null,null,2012,null,null,2013,null,null,2014,null,null,2015,null,null,"2016 Test Year",null,null,2017,null,null,2018,2016,null,2019,null,null,2020]
[null,null,null,"Direct Benefit","Provincial",null,"Direct Benefit","Provincial",null,"Direct Benefit","Provincial",null,"Direct Benefit","Provincial",null,"Direct Benefit","Provincial",null,"Direct Benefit","Provincial",null,"Direct Benefit","Provincial",null,"Direct Benefit","Provincial",null,"Direct Benefit","Provincial"]
[null,null,"Total",0.06,0.94,"Total",0.06,0.94,"Total",0.06,0.94,"Total",0.06,0.94,"Total",0.06,0.94,"Total",0.06,0.94,"Total",0.06,0.94,"Total",0.06,0.94,"Total",0.06,0.94]
["Net Fixed Assets (average)",null,{"$f":"D82","v":0},{"$f":"C20*D19","v":0},{"$f":"C20*E19","v":0},{"$f":"E82","v":0},{"$f":"F20*G19","v":0},{"$f":"F20*H19","v":0},{"$f":"F82","v":0},{"$f":"I20*J19","v":0},{"$f":"I20*K19","v":0},{"$f":"G82","v":0},{"$f":"L20*M19","v":0},{"$f":"L20*N19","v":0},{"$f":"H82","v":0},{"$f":"O20*P19","v":0},{"$f":"O20*Q19","v":0},{"$f":"I82","v":0},{"$f":"R20*S19","v":0},{"$f":"R20*T19","v":0},{"$f":"J82","v":0},{"$f":"U20*V19","v":0},{"$f":"U20*W19","v":0},{"$f":"K82","v":0},{"$f":"X20*Y19","v":0},{"$f":"X20*Z19","v":0},{"$f":"L82","v":0},{"$f":"AA20*AB19","v":0},{"$f":"AA20*AC19","v":0}]
["Incremental OM&A (on-going, N/A for Provincial Recovery)",null,{"$f":"'App.2-FA Proposed REG Invest.'!C64","v":0},{"$f":"C21","v":0},null,{"$f":"'App.2-FA Proposed REG Invest.'!D64","v":0},{"$f":"F21","v":0},null,{"$f":"'App.2-FA Proposed REG Invest.'!E64","v":0},{"$f":"I21","v":0},null,{"$f":"'App.2-FA Proposed REG Invest.'!F64","v":0},{"$f":"L21","v":0},null,{"$f":"'App.2-FA Proposed REG Invest.'!G64","v":0},{"$f":"O21","v":0},null,{"$f":"'App.2-FA Proposed REG Invest.'!H64","v":0},{"$f":"R21","v":0},null,{"$f":"'App.2-FA Proposed REG Invest.'!I64","v":0},{"$f":"U21","v":0},null,{"$f":"'App.2-FA Proposed REG Invest.'!J64","v":0},{"$f":"X21","v":0},null,{"$f":"'App.2-FA Proposed REG Invest.'!K64","v":0},{"$f":"AA21","v":0}]
["Incremental OM&A (start-up, applicable for Provincial Recovery)",null,{"$f":"'App.2-FA Proposed REG Invest.'!C63","v":0},{"$f":"C22*D19","v":0},{"$f":"C22*E19","v":0},{"$f":"'App.2-FA Proposed REG Invest.'!D63","v":0},{"$f":"F22*G19","v":0},{"$f":"F22*H19","v":0},{"$f":"'App.2-FA Proposed REG Invest.'!E63","v":0},{"$f":"I22*J19","v":0},{"$f":"I22*K19","v":0},{"$f":"'App.2-FA Proposed REG Invest.'!F63","v":0},{"$f":"L22*M19","v":0},{"$f":"L22*N19","v":0},{"$f":"'App.2-FA Proposed REG Invest.'!G63","v":0},{"$f":"O22*P19","v":0},{"$f":"O22*Q19","v":0},{"$f":"'App.2-FA Proposed REG Invest.'!H63","v":0},{"$f":"R22*S19","v":0},{"$f":"R22*T19","v":0},{"$f":"'App.2-FA Proposed REG Invest.'!I63","v":0},{"$f":"U22*V19","v":0},{"$f":"U22*W19","v":0},{"$f":"'App.2-FA Proposed REG Invest.'!J63","v":0},{"$f":"X22*Y19","v":0},{"$f":"X22*Z19","v":0},{"$f":"'App.2-FA Proposed REG Invest.'!K63","v":0},{"$f":"AA22*AB19","v":0},{"$f":"AA22*AC19","v":0}]
["WCA",null,null,{"$f":"(D21+D22)*$B$23","v":0},{"$f":"E22*$B$23","v":0},null,{"$f":"(G21+G22)*$B$23","v":0},{"$f":"H22*$B$23","v":0},null,{"$f":"(J21+J22)*$B$23","v":0},{"$f":"K22*$B$23","v":0},null,{"$f":"(M21+M22)*$B$23","v":0},{"$f":"N22*$B$23","v":0},null,{"$f":"(P21+P22)*$B$23","v":0},{"$f":"Q22*$B$23","v":0},null,{"$f":"(S21+S22)*$B$23","v":0},{"$f":"T22*$B$23","v":0},null,{"$f":"(V21+V22)*$B$23","v":0},{"$f":"W22*$B$23","v":0},null,{"$f":"(Y21+Y22)*$B$23","v":0},{"$f":"Z22*$B$23","v":0},null,{"$f":"(AB21+AB22)*$B$23","v":0},{"$f":"AC22*$B$23","v":0}]
["Rate Base",null,null,{"$f":"SUM(D20+D23)","v":0},{"$f":"SUM(E20+E23)","v":0},null,{"$f":"SUM(G20+G23)","v":0},{"$f":"SUM(H20+H23)","v":0},null,{"$f":"SUM(J20+J23)","v":0},{"$f":"SUM(K20+K23)","v":0},null,{"$f":"SUM(M20+M23)","v":0},{"$f":"SUM(N20+N23)","v":0},null,{"$f":"SUM(P20+P23)","v":0},{"$f":"SUM(Q20+Q23)","v":0},null,{"$f":"SUM(S20+S23)","v":0},{"$f":"SUM(T20+T23)","v":0},null,{"$f":"SUM(V20+V23)","v":0},{"$f":"SUM(W20+W23)","v":0},null,{"$f":"SUM(Y20+Y23)","v":0},{"$f":"SUM(Z20+Z23)","v":0},null,{"$f":"SUM(AB20+AB23)","v":0},{"$f":"SUM(AC20+AC23)","v":0}]
[]
[]
["Deemed ST Debt",null,null,{"$f":"D24*$B$27","v":0},{"$f":"E24*$B$27","v":0},null,{"$f":"G24*$B$27","v":0},{"$f":"H24*$B$27","v":0},null,{"$f":"J24*$B$27","v":0},{"$f":"K24*$B$27","v":0},null,{"$f":"M24*$B$27","v":0},{"$f":"N24*$B$27","v":0},null,{"$f":"P24*$B$27","v":0},{"$f":"Q24*$B$27","v":0},null,{"$f":"S24*$B$27","v":0},{"$f":"T24*$B$27","v":0},null,{"$f":"V24*$B$27","v":0},{"$f":"W24*$B$27","v":0},null,{"$f":"Y24*$B$27","v":0},{"$f":"Z24*$B$27","v":0},null,{"$f":"AB24*$B$27","v":0},{"$f":"AC24*$B$27","v":0}]
["Deemed LT Debt",null,null,{"$f":"D24*$B$28","v":0},{"$f":"E24*$B$28","v":0},null,{"$f":"G24*$B$28","v":0},{"$f":"H24*$B$28","v":0},null,{"$f":"J24*$B$28","v":0},{"$f":"K24*$B$28","v":0},null,{"$f":"M24*$B$28","v":0},{"$f":"N24*$B$28","v":0},null,{"$f":"P24*$B$28","v":0},{"$f":"Q24*$B$28","v":0},null,{"$f":"S24*$B$28","v":0},{"$f":"T24*$B$28","v":0},null,{"$f":"V24*$B$28","v":0},{"$f":"W24*$B$28","v":0},null,{"$f":"Y24*$B$28","v":0},{"$f":"Z24*$B$28","v":0},null,{"$f":"AB24*$B$28","v":0},{"$f":"AC24*$B$28","v":0}]
["Deemed Equity",null,null,{"$f":"D24*$B$29","v":0},{"$f":"E24*$B$29","v":0},null,{"$f":"G24*$B$29","v":0},{"$f":"H24*$B$29","v":0},null,{"$f":"J24*$B$29","v":0},{"$f":"K24*$B$29","v":0},null,{"$f":"M24*$B$29","v":0},{"$f":"N24*$B$29","v":0},null,{"$f":"P24*$B$29","v":0},{"$f":"Q24*$B$29","v":0},null,{"$f":"S24*$B$29","v":0},{"$f":"T24*$B$29","v":0},null,{"$f":"V24*$B$29","v":0},{"$f":"W24*$B$29","v":0},null,{"$f":"Y24*$B$29","v":0},{"$f":"Z24*$B$29","v":0},null,{"$f":"AB24*$B$29","v":0},{"$f":"AC24*$B$29","v":0}]
[]
["ST Interest",null,null,{"$f":"D27*$B31","v":0},{"$f":"E27*$B31","v":0},null,{"$f":"G27*$B31","v":0},{"$f":"H27*$B31","v":0},null,{"$f":"J27*$B31","v":0},{"$f":"K27*$B31","v":0},null,{"$f":"M27*$B31","v":0},{"$f":"N27*$B31","v":0},null,{"$f":"P27*$B31","v":0},{"$f":"Q27*$B31","v":0},null,{"$f":"S27*$B31","v":0},{"$f":"T27*$B31","v":0},null,{"$f":"V27*$B31","v":0},{"$f":"W27*$B31","v":0},null,{"$f":"Y27*$B31","v":0},{"$f":"Z27*$B31","v":0},null,{"$f":"AB27*$B31","v":0},{"$f":"AC27*$B31","v":0}]
["LT Interest",null,null,{"$f":"D28*$B32","v":0},0,null,{"$f":"G28*$B32","v":0},0,null,{"$f":"J28*$B32","v":0},0,null,{"$f":"M28*$B32","v":0},0,null,{"$f":"P28*$B32","v":0},0,null,{"$f":"S28*$B32","v":0},0,null,{"$f":"V28*$B32","v":0},0,null,{"$f":"Y28*$B32","v":0},0,null,{"$f":"AB28*$B32","v":0},0]
["ROE",null,null,0,0,null,0,0,null,0,0,null,0,0,null,0,0,null,0,0,null,0,0,null,0,0,null,0,0]
["Cost of Capital Total",null,null,{"$f":"SUM(D31:D33)","v":0},{"$f":"SUM(E31:E33)","v":0},null,{"$f":"SUM(G31:G33)","v":0},{"$f":"SUM(H31:H33)","v":0},null,{"$f":"SUM(J31:J33)","v":0},{"$f":"SUM(K31:K33)","v":0},null,{"$f":"SUM(M31:M33)","v":0},{"$f":"SUM(N31:N33)","v":0},null,{"$f":"SUM(P31:P33)","v":0},{"$f":"SUM(Q31:Q33)","v":0},null,{"$f":"SUM(S31:S33)","v":0},{"$f":"SUM(T31:T33)","v":0},null,{"$f":"SUM(V31:V33)","v":0},{"$f":"SUM(W31:W33)","v":0},null,{"$f":"SUM(Y31:Y33)","v":0},{"$f":"SUM(Z31:Z33)","v":0},null,{"$f":"SUM(AB31:AB33)","v":0},{"$f":"SUM(AC31:AC33)","v":0}]
[]
["OM&A",null,null,{"$f":"D21+D22","v":0},{"$f":"E22","v":0},null,{"$f":"G21+G22","v":0},{"$f":"H22","v":0},null,{"$f":"J21+J22","v":0},{"$f":"K22","v":0},null,{"$f":"M21+M22","v":0},{"$f":"N22","v":0},null,{"$f":"P21+P22","v":0},{"$f":"Q22","v":0},null,{"$f":"S21+S22","v":0},{"$f":"T22","v":0},null,{"$f":"V21+V22","v":0},{"$f":"W22","v":0},null,{"$f":"Y21+Y22","v":0},{"$f":"Z22","v":0},null,{"$f":"AB21+AB22","v":0},{"$f":"AC22","v":0}]
["Amortization",null,{"$f":"D77","v":0},{"$f":"C37*D$19","v":0},{"$f":"C37*E$19","v":0},{"$f":"E77","v":0},{"$f":"F37*G$19","v":0},{"$f":"F37*H$19","v":0},{"$f":"F77","v":0},{"$f":"I37*J$19","v":0},{"$f":"I37*K$19","v":0},{"$f":"G77","v":0},{"$f":"L37*M$19","v":0},{"$f":"L37*N$19","v":0},{"$f":"H77","v":0},{"$f":"O37*P$19","v":0},{"$f":"O37*Q$19","v":0},{"$f":"I76+I77","v":0},{"$f":"R37*S$19","v":0},{"$f":"R37*T$19","v":0},{"$f":"J76+J77","v":0},{"$f":"U37*V$19","v":0},{"$f":"U37*W$19","v":0},{"$f":"K76+K77","v":0},{"$f":"X37*Y$19","v":0},{"$f":"X37*Z$19","v":0},{"$f":"L76+L77","v":0},{"$f":"AA37*AB$19","v":0},{"$f":"AA37*AC$19","v":0}]
["Grossed-up PILs",null,null,{"$f":"D65","v":0},{"$f":"E65","v":0},null,{"$f":"G65","v":0},{"$f":"H65","v":0},null,{"$f":"J65","v":0},{"$f":"K65","v":0},null,{"$f":"M65","v":0},{"$f":"N65","v":0},null,{"$f":"P65","v":0},{"$f":"Q65","v":0},null,{"$f":"S65","v":0},{"$f":"T65","v":0},null,{"$f":"V65","v":0},{"$f":"W65","v":0},null,{"$f":"Y65","v":0},{"$f":"Z65","v":0},null,{"$f":"AB65","v":0},{"$f":"AC65","v":0}]
[]
["Revenue Requirement",null,null,{"$f":"SUM(D34:D38)","v":0},{"$f":"SUM(E34:E38)","v":0},null,{"$f":"SUM(G34:G38)","v":0},{"$f":"SUM(H34:H38)","v":0},null,{"$f":"SUM(J34:J38)","v":0},{"$f":"SUM(K34:K38)","v":0},null,{"$f":"SUM(M34:M38)","v":0},{"$f":"SUM(N34:N38)","v":0},null,{"$f":"SUM(P34:P38)","v":0},{"$f":"SUM(Q34:Q38)","v":0},null,{"$f":"SUM(S34:S38)","v":0},{"$f":"SUM(T34:T38)","v":0},null,{"$f":"SUM(V34:V38)","v":0},{"$f":"SUM(W34:W38)","v":0},null,{"$f":"SUM(Y34:Y38)","v":0},{"$f":"SUM(Z34:Z38)","v":0},null,{"$f":"SUM(AB34:AB38)","v":0},{"$f":"SUM(AC34:AC38)","v":0}]
[]
[]
["Provincial Rate Protection",null,null,null,{"$f":"E40","v":0},null,null,{"$f":"H40","v":0},null,null,{"$f":"K40","v":0},null,null,{"$f":"N40","v":0},null,null,{"$f":"Q40","v":0},null,null,{"$f":"T40","v":0},null,null,{"$f":"W40","v":0},null,null,{"$f":"Z40","v":0},null,null,{"$f":"AC40","v":0}]
[]
["Monthly Amount Paid by IESO",null,null,null,{"$f":"E43/12","v":0},null,null,{"$f":"H43/12","v":0},null,null,{"$f":"K43/12","v":0},null,null,{"$f":"N43/12","v":0},null,null,{"$f":"Q43/12","v":0},null,null,{"$f":"T43/12","v":0},null,null,{"$f":"W43/12","v":0},null,null,{"$f":"Z43/12","v":0},null,null,{"$f":"AC43/12","v":0}]
[]
["Note 1: The difference between the actual costs of approved eligible investments and revenue received from the IESO should be recorded in a variance account.  The Board may provide "]
["regulatory accounting guidance regarding a variance account either in an individual proceeding or on a generic basis."]
["Note 2: For the 2016 Test Year, Costs and Revenues of the Direct Benefit are to be included in the test year applicant Rate Base and Revenues.  "]
[]
["PILs Calculation"]
[null,null,null,2012,null,null,2013,null,null,2014,null,null,2015,null,null,2016,null,null,{"$f":"P52+1","v":2017},null,null,{"$f":"S52+1","v":2018},null,null,{"$f":"V52+1","v":2019},null,null,{"$f":"Y52+1","v":2020}]
["Income Tax",null,null,"Direct Benefit","Provincial",null,"Direct Benefit","Provincial",null,"Direct Benefit","Provincial",null,"Direct Benefit","Provincial",null,"Direct Benefit","Provincial",null,"Direct Benefit","Provincial",null,"Direct Benefit","Provincial",null,"Direct Benefit","Provincial",null,"Direct Benefit","Provincial"]
[null,null,null,null,null,null,null,null,null,null,null,null,null,null,null,null,null,null,null,null,null,null,null,"Total",null,null,"Total"]
["Net Income - ROE on Rate Base",null,null,{"$f":"D33","v":0},{"$f":"E33","v":0},null,{"$f":"G33","v":0},{"$f":"H33","v":0},null,{"$f":"J33","v":0},{"$f":"K33","v":0},null,{"$f":"M33","v":0},{"$f":"N33","v":0},null,{"$f":"P33","v":0},{"$f":"Q33","v":0},null,{"$f":"S33","v":0},{"$f":"T33","v":0},null,{"$f":"V33","v":0},{"$f":"W33","v":0},null,{"$f":"Y33","v":0},{"$f":"Z33","v":0},null,{"$f":"AB33","v":0},{"$f":"AC33","v":0}]
["Amortization (6% DB and 94% P)",null,null,{"$f":"D37","v":0},{"$f":"E37","v":0},null,{"$f":"G37","v":0},{"$f":"H37","v":0},null,{"$f":"J37","v":0},{"$f":"K37","v":0},null,{"$f":"M37","v":0},{"$f":"N37","v":0},null,{"$f":"P37","v":0},{"$f":"Q37","v":0},null,{"$f":"S37","v":0},{"$f":"T37","v":0},null,{"$f":"V37","v":0},{"$f":"W37","v":0},null,{"$f":"Y37","v":0},{"$f":"Z37","v":0},null,{"$f":"AB37","v":0},{"$f":"AC37","v":0}]
["CCA (6% DB and 94% P)",null,null,{"$f":"-D94*D$19","v":0},{"$f":"-D94*E$19","v":0},null,{"$f":"-E94*G19","v":0},{"$f":"-E94*H$19","v":0},null,{"$f":"-F94*J$19","v":0},{"$f":"-F94*K$19","v":0},null,{"$f":"-G94*M$19","v":0},{"$f":"-G94*N$19","v":0},null,{"$f":"-H94*P$19","v":0},{"$f":"-H94*Q$19","v":0},null,{"$f":"-I94*S$19","v":0},{"$f":"-I94*T$19","v":0},null,{"$f":"-J94*V$19","v":0},{"$f":"-J94*W$19","v":0},null,{"$f":"-K94*Y$19","v":0},{"$f":"-K94*Z$19","v":0},null,{"$f":"-L94*AB$19","v":0},{"$f":"-L94*AC$19","v":0}]
["Taxable income",null,null,{"$f":"SUM(D55:D57)","v":0},{"$f":"SUM(E55:E57)","v":0},null,{"$f":"SUM(G55:G57)","v":0},{"$f":"SUM(H55:H57)","v":0},null,{"$f":"SUM(J55:J57)","v":0},{"$f":"SUM(K55:K57)","v":0},null,{"$f":"SUM(M55:M57)","v":0},{"$f":"SUM(N55:N57)","v":0},null,{"$f":"SUM(P55:P57)","v":0},{"$f":"SUM(Q55:Q57)","v":0},null,{"$f":"SUM(S55:S57)","v":0},{"$f":"SUM(T55:T57)","v":0},null,{"$f":"SUM(V55:V57)","v":0},{"$f":"SUM(W55:W57)","v":0},null,{"$f":"SUM(Y55:Y57)","v":0},{"$f":"SUM(Z55:Z57)","v":0},null,{"$f":"SUM(AB55:AB57)","v":0},{"$f":"SUM(AC55:AC57)","v":0}]
[]
["Tax Rate  (to be entered)"]
[]
["Income Taxes Payable",null,null,{"$f":"D58*D60","v":0},{"$f":"E58*E60","v":0},null,{"$f":"G58*G60","v":0},{"$f":"H58*H60","v":0},null,{"$f":"J58*J60","v":0},{"$f":"K58*K60","v":0},null,{"$f":"M58*M60","v":0},{"$f":"N58*N60","v":0},null,{"$f":"P58*P60","v":0},{"$f":"Q58*Q60","v":0},null,{"$f":"S58*S60","v":0},{"$f":"T58*T60","v":0},null,{"$f":"V58*V60","v":0},{"$f":"W58*W60","v":0},null,{"$f":"Y58*Y60","v":0},{"$f":"Z58*Z60","v":0},null,{"$f":"AB58*AB60","v":0},{"$f":"AC58*AC60","v":0}]
["Gross Up"]
["Income Taxes Payable",null,null,{"$f":"D62/(1-D60)","v":0},{"$f":"E62/(1-E60)","v":0},null,{"$f":"G62/(1-G60)","v":0},{"$f":"H62/(1-H60)","v":0},null,{"$f":"J62/(1-J60)","v":0},{"$f":"K62/(1-K60)","v":0},null,{"$f":"M62/(1-M60)","v":0},{"$f":"N62/(1-N60)","v":0},null,{"$f":"P62/(1-P60)","v":0},{"$f":"Q62/(1-Q60)","v":0},null,{"$f":"S62/(1-S60)","v":0},{"$f":"T62/(1-T60)","v":0},null,{"$f":"V62/(1-V60)","v":0},{"$f":"W62/(1-W60)","v":0},null,{"$f":"Y62/(1-Y60)","v":0},{"$f":"Z62/(1-Z60)","v":0},null,{"$f":"AB62/(1-AB60)","v":0},{"$f":"AC62/(1-AC60)","v":0}]
["Grossed Up PILs",null,null,{"$f":"SUM(D64:D64)","v":0},{"$f":"SUM(E64:E64)","v":0},null,{"$f":"SUM(G64:G64)","v":0},{"$f":"SUM(H64:H64)","v":0},null,{"$f":"SUM(J64:J64)","v":0},{"$f":"SUM(K64:K64)","v":0},null,{"$f":"SUM(M64:M64)","v":0},{"$f":"SUM(N64:N64)","v":0},null,{"$f":"SUM(P64:P64)","v":0},{"$f":"SUM(Q64:Q64)","v":0},null,{"$f":"SUM(S64:S64)","v":0},{"$f":"SUM(T64:T64)","v":0},null,{"$f":"SUM(V64:V64)","v":0},{"$f":"SUM(W64:W64)","v":0},null,{"$f":"SUM(Y64:Y64)","v":0},{"$f":"SUM(Z64:Z64)","v":0},null,{"$f":"SUM(AB64:AB64)","v":0},{"$f":"SUM(AC64:AC64)","v":0}]
[]
[]
[null,null,null,2012,2013,2014,2015,2016,{"$f":"H68+1","v":2017},{"$f":"I68+1","v":2018},2019,2020]
["Net Fixed Assets"]
[null,"Enter applicable amortization in years:",25]
["Opening Gross Fixed Assets",null,null,null,{"$f":"D73","v":0},0,0,0,{"$f":"H73","v":0},{"$f":"I73","v":0},{"$f":"J73","v":0},{"$f":"K73","v":0}]
["Gross Capital Additions",null,null,{"$f":"'App.2-FA Proposed REG Invest.'!C62","v":0},{"$f":"'App.2-FA Proposed REG Invest.'!D62","v":0},{"$f":"'App.2-FA Proposed REG Invest.'!E62","v":0},{"$f":"'App.2-FA Proposed REG Invest.'!F62","v":0},{"$f":"'App.2-FA Proposed REG Invest.'!G62","v":0},{"$f":"'App.2-FA Proposed REG Invest.'!H62","v":0},{"$f":"'App.2-FA Proposed REG Invest.'!I62","v":0},{"$f":"'App.2-FA Proposed REG Invest.'!J62","v":0},{"$f":"'App.2-FA Proposed REG Invest.'!K62","v":0}]
["Closing Gross Fixed Assets",null,null,{"$f":"SUM(D71:D72)","v":0},0,0,0,{"$f":"SUM(H71:H72)","v":0},{"$f":"SUM(I71:I72)","v":0},0,0,0]
[]
["Opening Accumulated Amortization",null,null,null,{"$f":"+D78","v":0},{"$f":"E78","v":0},0,0,0,0,0,0]
["Current Year Amortization (before additions)",null,null,{"$f":"IF(ISERROR(D71/$C$70), 0, D71/$C$70)","v":0},0,0,0,0,{"$f":"IF(ISERROR(I71/$C$70), 0, I71/$C$70)","v":0},{"$f":"IF(ISERROR(J71/$C$70), 0, J71/$C$70)","v":0},{"$f":"IF(ISERROR(K71/$C$70), 0, K71/$C$70)","v":0},{"$f":"IF(ISERROR(L71/$C$70), 0, L71/$C$70)","v":0}]
["Additions (half year)",null,null,{"$f":"D72/$C$70/2","v":0},{"$f":"E72/$C$70/2","v":0},{"$f":"F72/$C$70/2","v":0},0,{"$f":"H72/$C$70/2","v":0},{"$f":"I72/C70/2","v":0},{"$f":"J72/C70/2","v":0},{"$f":"K72/C70/2","v":0},{"$f":"L72/C70/2","v":0}]
["Closing Accumulated Amortization",null,null,{"$f":"SUM(D75+D76+D77)","v":0},{"$f":"SUM(E75+E76+E77)","v":0},{"$f":"SUM(F75+F76+F77)","v":0},{"$f":"SUM(G75+G76+G77)","v":0},{"$f":"SUM(H75+H76+H77)","v":0},{"$f":"SUM(I75:I77)","v":0},{"$f":"SUM(J75:J77)","v":0},{"$f":"SUM(K75:K77)","v":0},{"$f":"SUM(L75:L77)","v":0}]
[]
["Opening Net Fixed Assets",null,null,{"$f":"D71-D75","v":0},0,{"$f":"F71-F75","v":0},0,{"$f":"H71-H75","v":0},{"$f":"H81","v":0},{"$f":"I81","v":0},{"$f":"J81","v":0},{"$f":"K81","v":0}]
["Closing Net Fixed Assets",null,null,{"$f":"D73-D78","v":0},{"$f":"E73-E78","v":0},0,0,{"$f":"H73-H78","v":0},{"$f":"I73-I78","v":0},{"$f":"J73-J78","v":0},{"$f":"K73-K78","v":0},{"$f":"L73-L78","v":0}]
["Average Net Fixed Assets",null,null,{"$f":"SUM(D80:D81)/2","v":0},0,0,0,{"$f":"SUM(H80:H81)/2","v":0},{"$f":"SUM(I80:I81)/2","v":0},{"$f":"SUM(J80:J81)/2","v":0},{"$f":"SUM(K80:K81)/2","v":0},{"$f":"SUM(L80:L81)/2","v":0}]
[]
["UCC for PILs Calculation"]
[null,null,null,2012,2013,2014,2015,2016,{"$f":"H85+1","v":2017},{"$f":"I85+1","v":2018},2019,2020]
[]
["Opening UCC",null,null,null,{"$f":"D95","v":0},0,0,0,0,0,0,0]
["Capital Additions (from Appendix 2-FA)",null,null,{"$f":"D72","v":0},0,0,0,{"$f":"H72","v":0},{"$f":"I72","v":0},0,0,0]
["UCC Before Half Year Rule",null,null,{"$f":"SUM(D87:D88)","v":0},0,0,0,{"$f":"SUM(H87:H88)","v":0},{"$f":"SUM(I87:I88)","v":0},{"$f":"SUM(J87:J88)","v":0},{"$f":"SUM(K87:K88)","v":0},{"$f":"SUM(L87:L88)","v":0}]
["Half Year Rule (1/2 Additions - Disposals)",null,null,{"$f":"D88/2","v":0},0,0,0,{"$f":"H88/2","v":0},{"$f":"I88/2","v":0},{"$f":"J88/2","v":0},{"$f":"K88/2","v":0},{"$f":"L88/2","v":0}]
["Reduced UCC",null,null,{"$f":"D89-D90","v":0},0,0,0,{"$f":"H89-H90","v":0},{"$f":"I89-I90","v":0},{"$f":"J89-J90","v":0},{"$f":"K89-K90","v":0},{"$f":"L89-L90","v":0}]
["CCA Rate Class (to be entered)",null,47,{"$f":"C92","v":47},{"$f":"D92","v":47},47,47,47,47,47,47,47]
["CCA Rate  (to be entered)",null,0.08,{"$f":"C93","v":0.08},0.08,0.08,0.08,0.08,0.08,0.08,0.08,0.08]
["CCA",null,null,{"$f":"D91*D93","v":0},0,0,0,{"$f":"H91*H93","v":0},{"$f":"I91*I93","v":0},0,0,{"$f":"L91*L93","v":0}]
["Closing UCC",null,null,{"$f":"D89-D94","v":0},0,0,0,{"$f":"H89-H94","v":0},{"$f":"I89-I94","v":0},{"$f":"J89-J94","v":0},{"$f":"K89-K94","v":0},{"$f":"L89-L94","v":0}]

{"sheet":"App.2-FC Calc of REG Expansion","index":6,"n_rows":95,"n_cols":30,"rows_kept":95,"cut":false,"hidden":false,"merged":[[8,0,8,14],[9,0,9,14],[11,0,11,14],[12,0,12,14],[14,0,14,14],[17,3,17,5],[17,6,17,8],[17,9,17,11],[17,12,17,14],[17,15,17,17],[17,18,17,20],[17,21,17,23],[17,24,17,26],[17,27,17,29],[52,22,52,23],[52,25,52,26],[52,28,52,29],[47,0,47,20],[49,0,49,21],[50,0,50,1],[52,4,52,5],[52,7,52,8],[52,10,52,11],[52,13,52,14],[52,16,52,17],[52,19,52,20]]}
[null,null,null,null,null,null,null,null,null,null,null,null,null,"File Number:",{"$f":"EBNUMBER","v":"EB-2015-0108"}]
[null,null,null,null,null,null,null,null,null,null,null,null,null,"Exhibit:",9]
[null,null,null,null,null,null,null,null,null,null,null,null,null,"Tab:","9-Staff-149"]
[null,null,null,null,null,null,null,null,null,null,null,null,null,"Schedule:"]
[null,null,null,null,null,null,null,null,null,null,null,null,null,"Page:"]
[]
[null,null,null,null,null,null,null,null,null,null,null,null,null,"Date:","2015-08-07"]
[]
["Appendix 2-FC"]
["Calculation of Renewable Generation Connection Direct Benefits/Provincial Amount: Renewable Expansion Investments"]
[]
["This table will calculate the distributor/provincial shares of the investments entered in Part B of Appendix 2-FA."]
["Enter values in green shaded cells: WCA percentage, debt percentages, interest rates, kWh, tax rates, amortization period, CCA Class and percentage."]
["For historical investments, enter these variables for your last cost of service test year.  For 2016 and beyond, enter variables as in the application."]
["Rate Riders are not calculated for Test Year as these assets and costs are already in the distributor's rate base."]
[]
[]
[null,null,null,2012,null,null,2013,null,null,2014,null,null,2015,null,null,"2016 TEST YEAR",null,null,2017,2016,null,2018,null,null,2019,null,null,2020]
[null,null,null,null,"Direct Benefit","Provincial",null,"Direct Benefit","Provincial",null,"Direct Benefit","Provincial",null,"Direct Benefit","Provincial",null,"Direct Benefit","Provincial",null,"Direct Benefit","Provincial",null,"Direct Benefit","Provincial",null,"Direct Benefit","Provincial",null,"Direct Benefit","Provincial"]
[null,null,null,"Total",0.17,0.83,"Total",0.17,0.83,"Total",0.17,0.83,"Total",0.17,0.83,"Total",0.17,0.83,"Total",0.17,0.83,"Total",0.17,0.83,"Total",0.17,0.83,"Total",0.17,0.83]
["Net Fixed Assets (average)",null,null,{"$f":"D82","v":0},{"$f":"D21*E20","v":0},{"$f":"D21*F20","v":0},{"$f":"E82","v":57486.902900000001},{"$f":"G21*H20","v":9772.7734930000006},{"$f":"G21*I20","v":47714.129407},{"$f":"F82","v":112627.40160000001},{"$f":"J21*K20","v":19146.658272000004},{"$f":"J21*L20","v":93480.743328000011},{"$f":"G82","v":107934.5932},{"$f":"M21*N20","v":18348.880844000003},{"$f":"M21*O20","v":89585.712356000004},{"$f":"H82","v":103241.78480000001},{"$f":"P21*Q20","v":17551.103416000002},{"$f":"P21*R20","v":85690.681383999996},{"$f":"I82","v":98548.9764},{"$f":"S21*T20","v":16753.325988000001},{"$f":"S21*U20","v":81795.650412000003},{"$f":"J82","v":93856.168000000005},{"$f":"V21*W20","v":15955.548560000003},{"$f":"V21*X20","v":77900.619439999995},{"$f":"K82","v":89163.359599999996},{"$f":"Y21*Z20","v":15157.771132},{"$f":"Y21*AA20","v":74005.588467999987},{"$f":"L82","v":84470.551200000002},{"$f":"AB21*AC20","v":14359.993704},{"$f":"AB21*AD20","v":70110.557495999994}]
["Incremental OM&A (on-going, N/A for Provincial Recovery)",null,null,{"$f":"'App.2-FA Proposed REG Invest.'!C101","v":0},{"$f":"D22","v":0},null,{"$f":"'App.2-FA Proposed REG Invest.'!D$101","v":0},{"$f":"G22","v":0},null,{"$f":"'App.2-FA Proposed REG Invest.'!E$101","v":0},{"$f":"J22","v":0},null,{"$f":"'App.2-FA Proposed REG Invest.'!F$101","v":0},{"$f":"M22","v":0},null,{"$f":"'App.2-FA Proposed REG Invest.'!G$101","v":0},{"$f":"P22","v":0},null,{"$f":"'App.2-FA Proposed REG Invest.'!H$101","v":0},{"$f":"S22","v":0},null,{"$f":"'App.2-FA Proposed REG Invest.'!I$101","v":0},{"$f":"V22","v":0},null,{"$f":"'App.2-FA Proposed REG Invest.'!J$101","v":0},{"$f":"Y22","v":0},null,{"$f":"'App.2-FA Proposed REG Invest.'!K$101","v":0},{"$f":"AB22","v":0}]
["Incremental OM&A (start-up, applicable for Provincial Recovery)",null,null,{"$f":"'App.2-FA Proposed REG Invest.'!C100","v":0},{"$f":"D23*E20","v":0},{"$f":"D23*F20","v":0},{"$f":"'App.2-FA Proposed REG Invest.'!D$100","v":0},{"$f":"G23*H20","v":0},{"$f":"G23*I20","v":0},{"$f":"'App.2-FA Proposed REG Invest.'!E$100","v":0},{"$f":"J23*K20","v":0},{"$f":"J23*L20","v":0},{"$f":"'App.2-FA Proposed REG Invest.'!F$100","v":0},{"$f":"M23*N20","v":0},{"$f":"M23*O20","v":0},{"$f":"'App.2-FA Proposed REG Invest.'!G$100","v":0},{"$f":"P23*Q20","v":0},{"$f":"P23*R20","v":0},{"$f":"'App.2-FA Proposed REG Invest.'!H$100","v":0},{"$f":"S23*T20","v":0},{"$f":"S23*U20","v":0},{"$f":"'App.2-FA Proposed REG Invest.'!I$100","v":0},{"$f":"V23*W20","v":0},{"$f":"V23*X20","v":0},{"$f":"'App.2-FA Proposed REG Invest.'!J$100","v":0},{"$f":"Y23*Z20","v":0},{"$f":"Y23*AA20","v":0},{"$f":"'App.2-FA Proposed REG Invest.'!K$100","v":0},{"$f":"AB23*AC20","v":0},{"$f":"AB23*AD20","v":0}]
["WCA",0.15,null,null,{"$f":"(E22+E23)*$B$24","v":0},{"$f":"F23*$B$24","v":0},null,{"$f":"(H22+H23)*$B$24","v":0},{"$f":"I23*$B$24","v":0},null,{"$f":"(K22+K23)*$B$24","v":0},{"$f":"L23*$B$24","v":0},null,{"$f":"(N22+N23)*$B$24","v":0},{"$f":"O23*$B$24","v":0},null,{"$f":"(Q22+Q23)*$B$24","v":0},{"$f":"R23*$B$24","v":0},null,{"$f":"(T22+T23)*$B$24","v":0},{"$f":"U23*$B$24","v":0},null,{"$f":"(W22+W23)*$B$24","v":0},{"$f":"X23*$B$24","v":0},null,{"$f":"(Z22+Z23)*$B$24","v":0},{"$f":"AA23*$B$24","v":0},null,{"$f":"(AC22+AC23)*$B$24","v":0},{"$f":"AD23*$B$24","v":0}]
["Rate Base",null,null,null,{"$f":"SUM(E21+E24)","v":0},{"$f":"SUM(F21+F24)","v":0},null,{"$f":"SUM(H21+H24)","v":9772.7734930000006},{"$f":"SUM(I21+I24)","v":47714.129407},null,{"$f":"SUM(K21+K24)","v":19146.658272000004},{"$f":"SUM(L21+L24)","v":93480.743328000011},null,{"$f":"SUM(N21+N24)","v":18348.880844000003},{"$f":"SUM(O21+O24)","v":89585.712356000004},null,{"$f":"SUM(Q21+Q24)","v":17551.103416000002},{"$f":"SUM(R21+R24)","v":85690.681383999996},null,{"$f":"SUM(T21+T24)","v":16753.325988000001},{"$f":"SUM(U21+U24)","v":81795.650412000003},null,{"$f":"SUM(W21+W24)","v":15955.548560000003},{"$f":"SUM(X21+X24)","v":77900.619439999995},null,{"$f":"SUM(Z21+Z24)","v":15157.771132},{"$f":"SUM(AA21+AA24)","v":74005.588467999987},null,{"$f":"SUM(AC21+AC24)","v":14359.993704},{"$f":"SUM(AD21+AD24)","v":70110.557495999994}]
[]
[]
["Deemed ST Debt",0.04,null,null,{"$f":"E25*$B$28","v":0},{"$f":"F25*$B$28","v":0},null,{"$f":"H25*$B$28","v":390.91093972000004},{"$f":"I25*$B$28","v":1908.5651762800001},null,{"$f":"K25*$B$28","v":765.86633088000019},{"$f":"L25*$B$28","v":3739.2297331200007},null,{"$f":"N25*$B$28","v":733.95523376000017},{"$f":"O25*$B$28","v":3583.4284942400004},null,{"$f":"Q25*$B$28","v":702.04413664000003},{"$f":"R25*$B$28","v":3427.6272553599997},null,{"$f":"T25*$B$28","v":670.13303952000001},{"$f":"U25*$B$28","v":3271.8260164800004},null,{"$f":"W25*$B$28","v":638.2219424000001},{"$f":"X25*$B$28","v":3116.0247775999997},null,{"$f":"Z25*$B$28","v":606.31084527999997},{"$f":"AA25*$B$28","v":2960.2235387199994},null,{"$f":"AC25*$B$28","v":574.39974816000006},{"$f":"AD25*$B$28","v":2804.4222998399996}]
["Deemed LT Debt",0.56000000000000005,null,null,{"$f":"E25*$B$29","v":0},{"$f":"F25*$B$29","v":0},null,{"$f":"H25*$B$29","v":5472.7531560800007},{"$f":"I25*$B$29","v":26719.912467920003},null,{"$f":"K25*$B$29","v":10722.128632320004},{"$f":"L25*$B$29","v":52349.216263680013},null,{"$f":"N25*$B$29","v":10275.373272640003},{"$f":"O25*$B$29","v":50167.998919360005},null,{"$f":"Q25*$B$29","v":9828.6179129600023},{"$f":"R25*$B$29","v":47986.781575040004},null,{"$f":"T25*$B$29","v":9381.8625532800015},{"$f":"U25*$B$29","v":45805.564230720003},null,{"$f":"W25*$B$29","v":8935.1071936000026},{"$f":"X25*$B$29","v":43624.346886400002},null,{"$f":"Z25*$B$29","v":8488.35183392},{"$f":"AA25*$B$29","v":41443.129542079994},null,{"$f":"AC25*$B$29","v":8041.596474240001},{"$f":"AD25*$B$29","v":39261.912197760001}]
["Deemed Equity",0.4,null,null,{"$f":"E25*$B$30","v":0},{"$f":"F25*$B$30","v":0},null,{"$f":"H25*$B$30","v":3909.1093972000003},{"$f":"I25*$B$30","v":19085.6517628},null,{"$f":"K25*$B$30","v":7658.6633088000017},{"$f":"L25*$B$30","v":37392.297331200003},null,{"$f":"N25*$B$30","v":7339.5523376000019},{"$f":"O25*$B$30","v":35834.284942400001},null,{"$f":"Q25*$B$30","v":7020.4413664000012},{"$f":"R25*$B$30","v":34276.2725536},null,{"$f":"T25*$B$30","v":6701.3303952000006},{"$f":"U25*$B$30","v":32718.260164800002},null,{"$f":"W25*$B$30","v":6382.2194240000017},{"$f":"X25*$B$30","v":31160.247776},null,{"$f":"Z25*$B$30","v":6063.1084528000001},{"$f":"AA25*$B$30","v":29602.235387199995},null,{"$f":"AC25*$B$30","v":5743.9974816000004},{"$f":"AD25*$B$30","v":28044.222998400001}]
[]
["ST Interest",2.46E-2,null,null,{"$f":"E28*$B$32","v":0},{"$f":"F28*$B$32","v":0},null,{"$f":"H28*$B$32","v":9.616409117112001},{"$f":"I28*$B$32","v":46.950703336488004},null,{"$f":"K28*$B$32","v":18.840311739648005},{"$f":"L28*$B$32","v":91.985051434752023},null,{"$f":"N28*$B$32","v":18.055298750496004},{"$f":"O28*$B$32","v":88.152340958304009},null,{"$f":"Q28*$B$32","v":17.270285761344002},{"$f":"R28*$B$32","v":84.319630481855995},null,{"$f":"T28*$B$32","v":16.485272772192001},{"$f":"U28*$B$32","v":80.48692000540801},null,{"$f":"W28*$B$32","v":15.700259783040003},{"$f":"X28*$B$32","v":76.654209528959996},null,{"$f":"Z28*$B$32","v":14.915246793887999},{"$f":"AA28*$B$32","v":72.821499052511982},null,{"$f":"AC28*$B$32","v":14.130233804736001},{"$f":"AD28*$B$32","v":68.988788576063996}]
["LT Interest",5.215731564636647E-2,null,null,{"$f":"E29*$B$33","v":0},{"$f":"F29*$B$33","v":0},null,{"$f":"H29*$B$33","v":285.44411381631289},{"$f":"I29*$B$33","v":1393.6389086325864},null,{"$f":"K29*$B$33","v":559.23744747685805},{"$f":"L29*$B$33","v":2730.3945965046596},null,{"$f":"N29*$B$33","v":535.93588716532224},{"$f":"O29*$B$33","v":2616.6281549836317},null,{"$f":"Q29*$B$33","v":512.63432685378643},{"$f":"R29*$B$33","v":2502.8617134626043},null,{"$f":"T29*$B$33","v":489.33276654225068},{"$f":"U29*$B$33","v":2389.0952719415768},null,{"$f":"W29*$B$33","v":466.03120623071499},{"$f":"X29*$B$33","v":2275.3288304205494},null,{"$f":"Z29*$B$33","v":442.72964591917912},{"$f":"AA29*$B$33","v":2161.5623888995215},null,{"$f":"AC29*$B$33","v":419.42808560764342},{"$f":"AD29*$B$33","v":2047.7959473784942}]
["ROE",9.5799999999999996E-2,null,null,{"$f":"E30*$B$34","v":0},{"$f":"F30*$B$34","v":0},null,{"$f":"H30*$B$34","v":374.49268025176002},{"$f":"I30*$B$34","v":1828.4054388762399},null,{"$f":"K30*$B$34","v":733.69994498304015},{"$f":"L30*$B$34","v":3582.1820843289602},null,{"$f":"N30*$B$34","v":703.12911394208015},{"$f":"O30*$B$34","v":3432.9244974819198},null,{"$f":"Q30*$B$34","v":672.55828290112004},{"$f":"R30*$B$34","v":3283.66691063488},null,{"$f":"T30*$B$34","v":641.98745186016004},{"$f":"U30*$B$34","v":3134.4093237878401},null,{"$f":"W30*$B$34","v":611.41662081920015},{"$f":"X30*$B$34","v":2985.1517369407998},null,{"$f":"Z30*$B$34","v":580.84578977824003},{"$f":"AA30*$B$34","v":2835.8941500937594},null,{"$f":"AC30*$B$34","v":550.27495873728003},{"$f":"AD30*$B$34","v":2686.63656324672}]
["Cost of Capital Total",null,null,null,{"$f":"SUM(E32:E34)","v":0},{"$f":"SUM(F32:F34)","v":0},null,{"$f":"SUM(H32:H34)","v":669.55320318518488},{"$f":"SUM(I32:I34)","v":3268.9950508453144},null,{"$f":"SUM(K32:K34)","v":1311.7777041995462},{"$f":"SUM(L32:L34)","v":6404.561732268372},null,{"$f":"SUM(N32:N34)","v":1257.1202998578983},{"$f":"SUM(O32:O34)","v":6137.7049934238557},null,{"$f":"SUM(Q32:Q34)","v":1202.4628955162505},{"$f":"SUM(R32:R34)","v":5870.8482545793404},null,{"$f":"SUM(T32:T34)","v":1147.8054911746026},{"$f":"SUM(U32:U34)","v":5603.991515734825},null,{"$f":"SUM(W32:W34)","v":1093.1480868329552},{"$f":"SUM(X32:X34)","v":5337.1347768903088},null,{"$f":"SUM(Z32:Z34)","v":1038.4906824913071},{"$f":"SUM(AA32:AA34)","v":5070.2780380457934},null,{"$f":"SUM(AC32:AC34)","v":983.83327814965946},{"$f":"SUM(AD32:AD34)","v":4803.4212992012781}]
[]
["OM&A",null,null,null,{"$f":"E22+E23","v":0},{"$f":"F23","v":0},null,{"$f":"H22+H23","v":0},{"$f":"I23","v":0},null,{"$f":"K22+K23","v":0},{"$f":"L23","v":0},null,{"$f":"N22+N23","v":0},{"$f":"O23","v":0},null,{"$f":"Q22+Q23","v":0},{"$f":"R23","v":0},null,{"$f":"T22+T23","v":0},{"$f":"U23","v":0},null,{"$f":"W22+W23","v":0},{"$f":"X23","v":0},null,{"$f":"Z22+Z23","v":0},{"$f":"AA23","v":0},null,{"$f":"AC22+AC23","v":0},{"$f":"AD23","v":0}]
["Amortization",null,null,{"$f":"D78","v":0},{"$f":"D38*E$20","v":0},{"$f":"D38*F$20","v":0},{"$f":"E78","v":2346.4041999999999},{"$f":"G38*H$20","v":398.88871399999999},{"$f":"G38*I$20","v":1947.5154859999998},{"$f":"F78","v":7039.2125999999998},{"$f":"J38*K$20","v":1196.666142},{"$f":"J38*L$20","v":5842.5464579999998},{"$f":"G78","v":11732.021000000001},{"$f":"M38*N$20","v":1994.4435700000004},{"$f":"M38*O$20","v":9737.5774299999994},{"$f":"H76+H77","v":4692.8083999999999},{"$f":"P38*Q$20","v":797.77742799999999},{"$f":"P38*R$20","v":3895.0309719999996},{"$f":"I76+I77","v":4692.8083999999999},{"$f":"S38*T$20","v":797.77742799999999},{"$f":"S38*U$20","v":3895.0309719999996},{"$f":"J76+J77","v":4692.8083999999999},{"$f":"V38*W$20","v":797.77742799999999},{"$f":"V38*X$20","v":3895.0309719999996},{"$f":"K76+K77","v":4692.8083999999999},{"$f":"Y38*Z$20","v":797.77742799999999},{"$f":"Y38*AA$20","v":3895.0309719999996},{"$f":"L76+L77","v":4692.8083999999999},{"$f":"AB38*AC$20","v":797.77742799999999},{"$f":"AB38*AD$20","v":3895.0309719999996}]
["Grossed-up PILs",null,null,null,{"$f":"E66","v":0},{"$f":"F66","v":0},null,{"$f":"H66","v":0},{"$f":"I66","v":0},null,{"$f":"K66","v":0},{"$f":"L66","v":0},null,{"$f":"N66","v":0},{"$f":"O66","v":0},null,{"$f":"Q66","v":0},{"$f":"R66","v":0},null,{"$f":"T66","v":0},{"$f":"U66","v":0},null,{"$f":"W66","v":0},{"$f":"X66","v":0},null,{"$f":"Z66","v":0},{"$f":"AA66","v":0},null,{"$f":"AC66","v":0},{"$f":"AD66","v":0}]
[]
["Revenue Requirement",null,null,null,{"$f":"SUM(E35:E39)","v":0},{"$f":"SUM(F35:F39)","v":0},null,{"$f":"SUM(H35:H39)","v":1068.4419171851848},{"$f":"SUM(I35:I39)","v":5216.5105368453142},null,{"$f":"SUM(K35:K39)","v":2508.443846199546},{"$f":"SUM(L35:L39)","v":12247.108190268373},null,{"$f":"SUM(N35:N39)","v":3251.5638698578987},{"$f":"SUM(O35:O39)","v":15875.282423423854},null,{"$f":"SUM(Q35:Q39)","v":2000.2403235162506},{"$f":"SUM(R35:R39)","v":9765.87922657934},null,{"$f":"SUM(T35:T39)","v":1945.5829191746025},{"$f":"SUM(U35:U39)","v":9499.0224877348246},null,{"$f":"SUM(W35:W39)","v":1890.9255148329553},{"$f":"SUM(X35:X39)","v":9232.1657488903074},null,{"$f":"SUM(Z35:Z39)","v":1836.2681104913072},{"$f":"SUM(AA35:AA39)","v":8965.3090100457921},null,{"$f":"SUM(AC35:AC39)","v":1781.6107061496596},{"$f":"SUM(AD35:AD39)","v":8698.4522712012767}]
[]
[]
["Provincial Rate Protection",null,null,null,null,{"$f":"F41","v":0},null,null,{"$f":"I41","v":5216.5105368453142},null,null,{"$f":"L41","v":12247.108190268373},null,null,{"$f":"O41","v":15875.282423423854},null,null,{"$f":"R41","v":9765.87922657934},null,null,{"$f":"U41","v":9499.0224877348246},null,null,{"$f":"X41","v":9232.1657488903074},null,null,{"$f":"AA41","v":8965.3090100457921},null,null,{"$f":"AD41","v":8698.4522712012767}]
[]
["Monthly Amount Paid by IESO",null,null,null,null,{"$f":"F44/12","v":0},null,null,{"$f":"I44/12","v":434.70921140377618},null,null,{"$f":"L44/12","v":1020.5923491890311},null,null,{"$f":"O44/12","v":1322.9402019519878},null,null,{"$f":"R44/12","v":813.82326888161163},null,null,{"$f":"U44/12","v":791.58520731123542},null,null,{"$f":"X44/12","v":769.34714574085899},null,null,{"$f":"AA44/12","v":747.10908417048267},null,null,{"$f":"AD44/12","v":724.87102260010636}]
[]
["Note 1: The difference between the actual costs of approved eligible investments and revenue received from the IESO should be recorded in a variance account.  The Board may provide "]
["regulatory accounting guidance regarding a variance account either in an individual proceeding or on a generic basis."]
["Note 2: For the 2016 Test Year, Costs and Revenues of the Direct Benefit are to be included in the test year applicant Rate Base and Revenues."]
[]
["PILs Calculation"]
[null,null,null,null,2012,null,null,2013,null,null,2014,null,null,2015,null,null,"2016 TEST YEAR",null,null,2017,null,null,2018,null,null,2019,null,null,2020]
["Income Tax",null,null,null,"Direct Benefit","Provincial",null,"Direct Benefit","Provincial",null,"Direct Benefit","Provincial",null,"Direct Benefit","Provincial",null,"Direct Benefit","Provincial",null,"Direct Benefit","Provincial",null,"Direct Benefit","Provincial",null,"Direct Benefit","Provincial",null,"Direct Benefit","Provincial"]
[null,null,null,null,null,null,null,null,null,null,null,null,null,null,null,null,null,null,null,null,null,"Total",null,null,"Total",null,null,"Total"]
["Net Income - ROE on Rate Base",null,null,null,{"$f":"E34","v":0},{"$f":"F34","v":0},null,{"$f":"H34","v":374.49268025176002},{"$f":"I34","v":1828.4054388762399},null,{"$f":"K34","v":733.69994498304015},{"$f":"L34","v":3582.1820843289602},null,{"$f":"N34","v":703.12911394208015},{"$f":"O34","v":3432.9244974819198},null,{"$f":"Q34","v":672.55828290112004},{"$f":"R34","v":3283.66691063488},null,{"$f":"T34","v":641.98745186016004},{"$f":"U34","v":3134.4093237878401},null,{"$f":"W34","v":611.41662081920015},{"$f":"X34","v":2985.1517369407998},null,{"$f":"Z34","v":580.84578977824003},{"$f":"AA34","v":2835.8941500937594},null,{"$f":"AC34","v":550.27495873728003},{"$f":"AD34","v":2686.63656324672}]
["Amortization (17% DB and 83% P)",null,null,null,{"$f":"E38","v":0},{"$f":"F38","v":0},null,{"$f":"H38","v":398.88871399999999},{"$f":"I38","v":1947.5154859999998},null,{"$f":"K38","v":1196.666142},{"$f":"L38","v":5842.5464579999998},null,{"$f":"N38","v":1994.4435700000004},{"$f":"O38","v":9737.5774299999994},null,{"$f":"Q38","v":797.77742799999999},{"$f":"R38","v":3895.0309719999996},null,{"$f":"T38","v":797.77742799999999},{"$f":"U38","v":3895.0309719999996},null,{"$f":"W38","v":797.77742799999999},{"$f":"X38","v":3895.0309719999996},null,{"$f":"Z38","v":797.77742799999999},{"$f":"AA38","v":3895.0309719999996},null,{"$f":"AC38","v":797.77742799999999},{"$f":"AD38","v":3895.0309719999996}]
["CCA (17% DB and 83% P)",null,null,null,{"$f":"-D94*E$20","v":0},{"$f":"-D94*F$20","v":0},null,{"$f":"-E94*H$20","v":-797.77742800000021},{"$f":"-E94*I$20","v":-3895.0309720000005},null,{"$f":"-F94*K$20","v":-1531.7326617600002},{"$f":"-F94*L$20","v":-7478.4594662400004},null,{"$f":"-G94*N$20","v":-1409.1940488192004},{"$f":"-G94*O$20","v":-6880.1827089408007},null,{"$f":"-H94*Q$20","v":-1296.4585249136642},{"$f":"-H94*R$20","v":-6329.7680922255367},null,{"$f":"-I94*T$20","v":-1192.7418429205711},{"$f":"-I94*U$20","v":-5823.3866448474937},null,{"$f":"-J94*W$20","v":-1097.3224954869256},{"$f":"-J94*X$20","v":-5357.5157132596951},null,{"$f":"-K94*Z$20","v":-1009.5366958479716},{"$f":"-K94*AA$20","v":-4928.9144561989197},null,{"$f":"-L94*AC$20","v":-928.77376018013376},{"$f":"-L94*AD$20","v":-4534.6012997030057}]
["Taxable income",null,null,null,{"$f":"SUM(E56:E58)","v":0},{"$f":"SUM(F56:F58)","v":0},null,{"$f":"SUM(H56:H58)","v":-24.396033748240257},{"$f":"SUM(I56:I58)","v":-119.11004712376052},null,{"$f":"SUM(K56:K58)","v":398.63342522303992},{"$f":"SUM(L56:L58)","v":1946.2690760889591},null,{"$f":"SUM(N56:N58)","v":1288.37863512288},{"$f":"SUM(O56:O58)","v":6290.3192185411181},null,{"$f":"SUM(Q56:Q58)","v":173.87718598745573},{"$f":"SUM(R56:R58)","v":848.92979040934279},null,{"$f":"SUM(T56:T58)","v":247.02303693958879},{"$f":"SUM(U56:U58)","v":1206.0536509403455},null,{"$f":"SUM(W56:W58)","v":311.87155333227452},{"$f":"SUM(X56:X58)","v":1522.6669956811047},null,{"$f":"SUM(Z56:Z58)","v":369.0865219302683},{"$f":"SUM(AA56:AA58)","v":1802.0106658948389},null,{"$f":"SUM(AC56:AC58)","v":419.27862655714614},{"$f":"SUM(AD56:AD58)","v":2047.0662355437134}]
[]
["Tax Rate  (to be entered)"]
[]
["Income Taxes Payable",null,null,null,{"$f":"E59*E61","v":0},{"$f":"F59*F61","v":0},null,{"$f":"H59*H61","v":0},{"$f":"I59*I61","v":0},null,{"$f":"K59*K61","v":0},{"$f":"L59*L61","v":0},null,{"$f":"N59*N61","v":0},{"$f":"O59*O61","v":0},null,{"$f":"Q59*Q61","v":0},{"$f":"R59*R61","v":0},null,{"$f":"T59*T61","v":0},{"$f":"U59*U61","v":0},null,{"$f":"W59*W61","v":0},{"$f":"X59*X61","v":0},null,{"$f":"Z59*Z61","v":0},{"$f":"AA59*AA61","v":0},null,{"$f":"AC59*AC61","v":0},{"$f":"AD59*AD61","v":0}]
["Gross Up"]
["Income Taxes Payable",null,null,null,{"$f":"E63/(1-E61)","v":0},{"$f":"F63/(1-F61)","v":0},null,{"$f":"H63/(1-H61)","v":0},{"$f":"I63/(1-I61)","v":0},null,{"$f":"K63/(1-K61)","v":0},{"$f":"L63/(1-L61)","v":0},null,{"$f":"N63/(1-N61)","v":0},{"$f":"O63/(1-O61)","v":0},null,{"$f":"Q63/(1-Q61)","v":0},{"$f":"R63/(1-R61)","v":0},null,{"$f":"T63/(1-T61)","v":0},{"$f":"U63/(1-U61)","v":0},null,{"$f":"W63/(1-W61)","v":0},{"$f":"X63/(1-X61)","v":0},null,{"$f":"Z63/(1-Z61)","v":0},{"$f":"AA63/(1-AA61)","v":0},null,{"$f":"AC63/(1-AC61)","v":0},{"$f":"AD63/(1-AD61)","v":0}]
["Grossed Up PILs",null,null,null,{"$f":"SUM(E65:E65)","v":0},{"$f":"SUM(F65:F65)","v":0},null,{"$f":"SUM(H65:H65)","v":0},{"$f":"SUM(I65:I65)","v":0},null,{"$f":"SUM(K65:K65)","v":0},{"$f":"SUM(L65:L65)","v":0},null,{"$f":"SUM(N65:N65)","v":0},{"$f":"SUM(O65:O65)","v":0},null,{"$f":"SUM(Q65:Q65)","v":0},{"$f":"SUM(R65:R65)","v":0},null,{"$f":"SUM(T65:T65)","v":0},{"$f":"SUM(U65:U65)","v":0},null,{"$f":"SUM(W65:W65)","v":0},{"$f":"SUM(X65:X65)","v":0},null,{"$f":"SUM(Z65:Z65)","v":0},{"$f":"SUM(AA65:AA65)","v":0},null,{"$f":"SUM(AC65:AC65)","v":0},{"$f":"SUM(AD65:AD65)","v":0}]
[]
[]
["Net Fixed Assets",null,null,2011,2012,2013,2014,2015,2016,2017,2018,2019]
[null,"Enter applicable amortization in years:",25]
["Opening Gross Fixed Assets",null,null,null,{"$f":"D73","v":0},117320.21,117320.21,117320.21,117320.21,117320.21,117320.21,117320.21]
["Gross Capital Additions",null,null,{"$f":"'App.2-FA Proposed REG Invest.'!C99","v":0},{"$f":"'App.2-FA Proposed REG Invest.'!D99","v":117320.21},{"$f":"'App.2-FA Proposed REG Invest.'!E99","v":0},{"$f":"'App.2-FA Proposed REG Invest.'!F99","v":0},{"$f":"'App.2-FA Proposed REG Invest.'!G99","v":0},{"$f":"'App.2-FA Proposed REG Invest.'!H99","v":0},{"$f":"'App.2-FA Proposed REG Invest.'!I99","v":0},{"$f":"'App.2-FA Proposed REG Invest.'!J99","v":0},{"$f":"'App.2-FA Proposed REG Invest.'!K99","v":0}]
["Closing Gross Fixed Assets",null,null,{"$f":"SUM(D71:D72)","v":0},117320.21,117320.21,117320.21,117320.21,117320.21,117320.21,117320.21,117320.21]
[]
["Opening Accumulated Amortization",null,null,null,{"$f":"+D78","v":0},{"$f":"E78","v":2346.4041999999999},7039.2125999999998,{"$f":"G78","v":11732.021000000001},{"$f":"H78","v":16424.829400000002},{"$f":"I78","v":21117.637800000004},{"$f":"J78","v":25810.446200000006},{"$f":"K78","v":30503.254600000007}]
["Current Year Amortization (before additions)",null,null,null,{"$f":"IF(ISERROR(E71/$C$70), 0, E71/$C$70)","v":0},4692.8083999999999,4692.8083999999999,{"$f":"H71/$C$70","v":4692.8083999999999},{"$f":"I71/$C$70","v":4692.8083999999999},{"$f":"J71/$C$70","v":4692.8083999999999},{"$f":"K71/$C$70","v":4692.8083999999999},{"$f":"L71/$C$70","v":4692.8083999999999}]
["Additions (half year)",null,null,{"$f":"D72/C70/2","v":0},{"$f":"E72/C70/2","v":2346.4041999999999},{"$f":"F72/C70/2","v":0},{"$f":"G72/C70/2","v":0},{"$f":"H72/C70/2","v":0},{"$f":"I72/C70/2","v":0},{"$f":"J72/C70/2","v":0},{"$f":"K72/C70/2","v":0},{"$f":"L72/C70/2","v":0}]
["Closing Accumulated Amortization",null,null,{"$f":"SUM(D75+D77)","v":0},{"$f":"SUM(E75:E77)","v":2346.4041999999999},7039.2125999999998,11732.021000000001,16424.829400000002,21117.637800000004,25810.446200000006,30503.254600000007,35196.063000000009]
[]
["Opening Net Fixed Assets",null,null,{"$f":"D71-D75","v":0},{"$f":"E71-E75","v":0},{"$f":"F71-F75","v":114973.8058},{"$f":"G71-G75","v":110280.99740000001},{"$f":"G81","v":105588.18900000001},{"$f":"H81","v":100895.3806},{"$f":"I81","v":96202.572199999995},{"$f":"J81","v":91509.763800000001},{"$f":"K81","v":86816.955400000006}]
["Closing Net Fixed Assets",null,null,{"$f":"D73-D78","v":0},114973.8058,110280.99740000001,105588.18900000001,100895.3806,96202.572199999995,91509.763800000001,86816.955400000006,82124.146999999997]
["Average Net Fixed Assets",null,null,{"$f":"SUM(D80:D81)/2","v":0},57486.902900000001,112627.40160000001,107934.5932,103241.78480000001,98548.9764,93856.168000000005,89163.359599999996,84470.551200000002]
[]
["UCC for PILs Calculation"]
[null,null,null,2014,2014,2014,2014,2015,2016,2017,2018,2019]
[]
["Opening UCC",null,null,null,{"$f":"D95","v":0},112627.40160000001,103617.20947200002,95327.832714240008,87701.606097100812,80685.477609332753,74230.639400586137,68292.188248539242]
["Capital Additions (from Appendix 2-FA)",null,null,{"$f":"D72","v":0},117320.21,0,0,0,0,0,0,0]
["UCC Before Half Year Rule",null,null,{"$f":"SUM(D87:D88)","v":0},117320.21,112627.40160000001,103617.20947200002,95327.832714240008,87701.606097100812,80685.477609332753,74230.639400586137,68292.188248539242]
["Half Year Rule (1/2 Additions - Disposals)",null,null,{"$f":"D88/2","v":0},58660.105000000003,0,0,0,0,0,0,0]
["Reduced UCC",null,null,{"$f":"D89-D90","v":0},58660.105000000003,112627.40160000001,103617.20947200002,95327.832714240008,87701.606097100812,80685.477609332753,74230.639400586137,68292.188248539242]
["CCA Rate Class (to be entered)",null,47,{"$f":"$C$92","v":47},{"$f":"$C$92","v":47},47,47,47,47,47,47,47]
["CCA Rate  (to be entered)",null,0.08,{"$f":"$C$93","v":0.08},{"$f":"$C$93","v":0.08},0.08,0.08,0.08,0.08,0.08,0.08,0.08]
["CCA",null,null,{"$f":"D91*D$93","v":0},{"$f":"E91*E$93","v":4692.8084000000008},{"$f":"F91*F$93","v":9010.1921280000006},{"$f":"G91*G$93","v":8289.3767577600011},{"$f":"H91*H$93","v":7626.2266171392012},7016.1284877680655,6454.8382087466207,5938.4511520468914,5463.3750598831393]
["Closing UCC",null,null,{"$f":"D89-D94","v":0},112627.40160000001,103617.20947200002,95327.832714240008,87701.606097100812,80685.477609332753,74230.639400586137,68292.188248539242,62828.813188656102]

{"sheet":"App.2-W_Bill Impacts_hidden","index":7,"n_rows":69,"n_cols":13,"rows_kept":69,"cut":false,"hidden":true,"merged":[[1,4,1,6],[2,4,2,6],[9,5,9,7],[9,8,9,10],[54,3,54,4],[9,11,9,12],[10,4,11,4],[10,11,11,11],[10,12,11,12],[67,3,67,4],[55,3,55,4],[60,3,60,4],[61,3,61,4],[66,3,66,4]]}
[]
[null,null,null,"Customer Class:"]
[null,null,null,"RPP / Non-RPP:"]
[null,null,null,"Consumption",null,"kWh"]
[null,null,null,"Demand",null,"kW"]
[null,null,null,"Current Loss Factor"]
[null,null,null,"Proposed/Approved Loss Factor"]
[null,null,null,"Ontario Clean Energy Benefit Applied?"]
[]
[null,null,null,null,null,"Current Board-Approved",null,null,"Proposed",null,null,"Impact"]
[null,null,null,null,"Charge Unit","Rate","Volume","Charge","Rate","Volume","Charge","$ Change","% Change"]
[null,null,null,null,null,"($)",null,"($)","($)",null,"($)"]
[{"$f":"$E2","v":0},null,null,"Monthly Service Charge",null,null,1,{"$f":"G13*F13","v":0},null,1,{"$f":"J13*I13","v":0},{"$f":"K13-H13","v":0},{"$f":"IF(ISERROR(L13/H13), \"\", L13/H13)","v":""}]
[{"$f":"A13","v":0},null,null,"Smart Meter Rate Adder",null,null,1,{"$f":"G14*F14","v":0},null,1,{"$f":"J14*I14","v":0},0,{"$f":"IF(ISERROR(L14/H14), \"\", L14/H14)","v":""}]
[{"$f":"A14","v":0},null,null,null,null,null,1,0,null,1,{"$f":"J15*I15","v":0},0,""]
[0,null,null,null,null,null,1,0,null,1,0,0,""]
[0,null,null,null,null,null,1,0,null,1,0,0,""]
[0,null,null,null,null,null,1,0,null,1,0,0,""]
[0,null,null,"Distribution Volumetric Rate",null,null,{"$f":"IF($E5>0, $E5, $E4)","v":0},0,null,{"$f":"IF($E5>0, $E5, $E4)","v":0},0,0,""]
[0,null,null,"Smart Meter Disposition Rider",null,null,{"$f":"IF($E5>0, $E5, $E4)","v":0},0,null,{"$f":"IF($E5>0, $E5, $E4)","v":0},0,0,""]
[0,null,null,"LRAM & SSM Rate Rider",null,null,{"$f":"IF($E5>0, $E5, $E4)","v":0},0,null,{"$f":"IF($E5>0, $E5, $E4)","v":0},0,0,""]
[0,null,null,null,null,null,{"$f":"IF($E5>0, $E5, $E4)","v":0},0,null,{"$f":"IF($E5>0, $E5, $E4)","v":0},0,0,""]
[0,null,null,null,null,null,{"$f":"IF($E5>0, $E5, $E4)","v":0},0,null,{"$f":"IF($E5>0, $E5, $E4)","v":0},0,0,""]
[0,null,null,null,null,null,{"$f":"IF($E5>0, $E5, $E4)","v":0},0,null,{"$f":"IF($E5>0, $E5, $E4)","v":0},0,0,""]
[0,null,null,null,null,null,{"$f":"IF($E5>0, $E5, $E4)","v":0},0,null,{"$f":"IF($E5>0, $E5, $E4)","v":0},0,0,""]
[0,null,null,null,null,null,{"$f":"IF($E5>0, $E5, $E4)","v":0},0,null,{"$f":"IF($E5>0, $E5, $E4)","v":0},0,0,""]
[0,null,null,null,null,null,{"$f":"IF($E5>0, $E5, $E4)","v":0},0,null,{"$f":"IF($E5>0, $E5, $E4)","v":0},0,0,""]
[0,null,null,null,null,null,{"$f":"IF($E5>0, $E5, $E4)","v":0},0,null,{"$f":"IF($E5>0, $E5, $E4)","v":0},0,0,""]
[0,"ST_A",null,"Sub-Total A (excluding pass through)",null,null,null,{"$f":"SUM(H13:H28)","v":0},null,null,{"$f":"SUM(K13:K28)","v":0},0,{"$f":"IF((H29)=0,\"\",(L29/H29))","v":""}]
[0,null,null,"Deferral/Variance Account Disposition Rate Rider",null,null,{"$f":"IF($E5>0, $E5, $E4)","v":0},{"$f":"G30*F30","v":0},null,{"$f":"IF($E5>0, $E5, $E4)","v":0},{"$f":"J30*I30","v":0},0,""]
[0,null,null,null,null,null,{"$f":"IF($E5>0, $E5, $E4)","v":0},{"$f":"G31*F31","v":0},null,{"$f":"IF($E5>0, $E5, $E4)","v":0},{"$f":"J31*I31","v":0},0,""]
[0,null,null,null,null,null,{"$f":"IF($E5>0, $E5, $E4)","v":0},0,null,{"$f":"IF($E5>0, $E5, $E4)","v":0},0,0,""]
[0,null,null,null,null,null,{"$f":"IF($E5>0, $E5, $E4)","v":0},0,null,{"$f":"IF($E5>0, $E5, $E4)","v":0},0,0,""]
[0,null,null,"Low Voltage Service Charge",null,null,{"$f":"IF($E5>0, $E5, $E4)","v":0},{"$f":"G34*F34","v":0},null,{"$f":"IF($E5>0, $E5, $E4)","v":0},{"$f":"J34*I34","v":0},0,""]
[0,null,null,"Line Losses on Cost of Power",null,{"$f":"IF((E4*12>=150000), 0, IF(E3=\"RPP\",(F46*0.64+F47*0.18+F48*0.18),IF(E3=\"Non-RPP (Retailer)\",F49,F50)))","v":9.06E-2},{"$f":"IF(F35=0, 0, $E4*E6-E4)","v":0},0,{"$f":"IF((E4*12>=150000), 0, IF(E3=\"RPP\",(I46*0.64+I47*0.18+I48*0.18),IF(E3=\"Non-RPP (Retailer)\",I49,I50)))","v":9.06E-2},{"$f":"IF(I35=0, 0, E4*E7-E4)","v":0},0,0,""]
[0,null,null,"Smart Meter Entity Charge",null,0.79,1,{"$f":"G36*F36","v":0.79},0.79,1,{"$f":"J36*I36","v":0.79},0,0]
[0,"ST_B",null,"Sub-Total B - Distribution (includes Sub-Total A)",null,null,null,{"$f":"SUM(H30:H36)+H29","v":0.79},null,null,{"$f":"SUM(K30:K36)+K29","v":0.79},0,{"$f":"IF((H37)=0,\"\",(L37/H37))","v":0}]
[0,null,null,"RTSR - Network",null,null,{"$f":"IF($E5>0, $E5, $E4*$E6)","v":0},{"$f":"G38*F38","v":0},null,{"$f":"IF($E5>0, $E5, $E4*$E7)","v":0},{"$f":"J38*I38","v":0},0,""]
[0,null,null,"RTSR - Line and Transformation Connection",null,null,{"$f":"IF($E5>0, $E5, $E4*$E6)","v":0},{"$f":"G39*F39","v":0},null,{"$f":"IF($E5>0, $E5, $E4*$E7)","v":0},{"$f":"J39*I39","v":0},0,""]
[0,"ST_C",null,"Sub-Total C - Delivery (including Sub-Total B)",null,null,null,{"$f":"SUM(H37:H39)","v":0.79},null,null,{"$f":"SUM(K37:K39)","v":0.79},0,{"$f":"IF((H40)=0,\"\",(L40/H40))","v":0}]
[0,null,null,"Wholesale Market Service Charge (WMSC)",null,null,{"$f":"E4*E6","v":0},{"$f":"G41*F41","v":0},null,{"$f":"E4*E7","v":0},{"$f":"J41*I41","v":0},0,""]
[0,null,null,"Rural and Remote Rate Protection (RRRP)",null,null,{"$f":"E4*E6","v":0},0,null,{"$f":"E4*E7","v":0},0,0,""]
[0,null,null,"Standard Supply Service Charge",null,null,1,0,null,1,0,0,""]
[0,null,null,"Debt Retirement Charge (DRC)",null,null,{"$f":"E4","v":0},0,null,null,null,null,""]
[0,null,null,"Ontario Electricity Support Program \n(OESP) ",null,null,null,null,null,{"$f":"E4*E7","v":0},{"$f":"J45*I45","v":0},null,{"$f":"IF(ISERROR(L45/H45), \"\", L45/H45)","v":""}]
[{"$f":"A44","v":0},"RPP",null,"TOU - Off Peak",null,0.08,{"$f":"IF(AND(E4*12>=150000),0.64*E4*E6,0.64*E4)","v":0},0,0.08,{"$f":"IF(AND(E4*12>=150000),0.64*E4*E7,0.64*E4)","v":0},0,{"$f":"K46-H46","v":0},""]
[0,"RPP",null,"TOU - Mid Peak",null,0.122,{"$f":"IF(AND(E4*12>=150000),0.18*E4*E6,0.18*E4)","v":0},0,0.122,{"$f":"IF(AND(E4*12>=150000),0.18*E4*E7,0.18*E4)","v":0},0,{"$f":"K47-H47","v":0},""]
[0,"RPP",null,"TOU - On Peak",null,0.161,{"$f":"IF(AND(E4*12>=150000),0.18*E4*E6,0.18*E4)","v":0},0,0.161,{"$f":"IF(AND(E4*12>=150000),0.18*E4*E7,0.18*E4)","v":0},0,{"$f":"K48-H48","v":0},""]
[0,"Non-RPP (Retailer)",null,"Non-RPP Retailer Avg. Price",null,8.5999999999999993E-2,{"$f":"IF(AND(E4*12>=150000),E4*E6,E4)","v":0},{"$f":"G49*F49","v":0},8.5999999999999993E-2,{"$f":"IF(AND(E4*12>=150000),E4*E7,E4)","v":0},{"$f":"J49*I49","v":0},{"$f":"K49-H49","v":0},""]
[0,"Non-RPP (Other)",null,"Average IESO Wholesale Market Price",null,{"$f":"0.0906","v":9.06E-2},{"$f":"IF(AND(E4*12>=150000),E4*E6,E4)","v":0},{"$f":"G50*F50","v":0},{"$f":"0.0906","v":9.06E-2},{"$f":"IF(AND(E4*12>=150000),E4*E7,E4)","v":0},{"$f":"J50*I50","v":0},{"$f":"K50-H50","v":0},""]
[0]
[0,"RPP",null,"Total Bill on TOU (before Taxes)",null,null,null,{"$f":"SUM(H41:H48,H40)","v":0.79},null,null,{"$f":"SUM(K41:K48,K40)","v":0.79},{"$f":"K52-H52","v":0},{"$f":"IF((H52)=0,\"\",(L52/H52))","v":0}]
[0,"RPP",null,"HST",null,0.13,null,{"$f":"H52*F53","v":0.10270000000000001},0.13,null,{"$f":"K52*I53","v":0.10270000000000001},{"$f":"K53-H53","v":0},{"$f":"IF((H53)=0,\"\",(L53/H53))","v":0}]
[0,"RPP",null,"Total Bill (including HST)",null,null,null,{"$f":"H52+H53","v":0.89270000000000005},null,null,{"$f":"K52+K53","v":0.89270000000000005},{"$f":"K54-H54","v":0},{"$f":"IF((H54)=0,\"\",(L54/H54))","v":0}]
[0,"RPP",null,"Ontario Clean Energy Benefit 1",null,null,null,{"$f":"ROUND(-H54*10%,2)","v":-0.09}]
[0,"RPP_TOTAL",null,"Total Bill on TOU",null,null,null,{"$f":"H54+H55","v":0.80270000000000008},null,null,{"$f":"K54+K55","v":0.89270000000000005},{"$f":"K56-H56","v":8.9999999999999969E-2},{"$f":"IF((H56)=0,\"\",(L56/H56))","v":0.11212158963498188}]
[0,"RPP"]
[0,"Non-RPP (Retailer)",null,"Total Bill on Non-RPP Avg. Price",null,null,null,{"$f":"SUM(H49,H40,H41:H46)","v":0.79},null,null,{"$f":"SUM(K49,K40,K41:K46)","v":0.79},{"$f":"K58-H58","v":0},{"$f":"IF((H58)=0,\"\",(L58/H58))","v":0}]
[0,"Non-RPP (Retailer)",null,"HST",null,0.13,null,{"$f":"H58*F59","v":0.10270000000000001},0.13,null,{"$f":"K58*I59","v":0.10270000000000001},{"$f":"K59-H59","v":0},{"$f":"IF((H59)=0,\"\",(L59/H59))","v":0}]
[0,"Non-RPP (Retailer)",null,"Total Bill (including HST)",null,null,null,{"$f":"H58+H59","v":0.89270000000000005},null,null,{"$f":"K58+K59","v":0.89270000000000005},{"$f":"K60-H60","v":0},{"$f":"IF((H60)=0,\"\",(L60/H60))","v":0}]
[0,"Non-RPP (Retailer)",null,"Ontario Clean Energy Benefit 1",null,null,null,{"$f":"ROUND(-H60*10%,2)","v":-0.09}]
[0,"Non-RPP (Retailer)_TOTAL",null,"Total Bill on Non-RPP Avg. Price",null,null,null,{"$f":"SUM(H60:H61)","v":0.80270000000000008},null,null,{"$f":"SUM(K60:K61)","v":0.89270000000000005},{"$f":"K62-H62","v":8.9999999999999969E-2},{"$f":"IF((H62)=0,\"\",(L62/H62))","v":0.11212158963498188}]
[0,"Non-RPP (Retailer)"]
[0,"Non-RPP (Other)",null,"Total Bill on Average IESO Wholesale Market Price",null,null,null,{"$f":"SUM(H50,H40:H44)","v":0.79},null,null,{"$f":"SUM(K50,K40:K44)","v":0.79},{"$f":"K64-H64","v":0},{"$f":"IF((H64)=0,\"\",(L64/H64))","v":0}]
[0,"Non-RPP (Other)",null,"HST",null,0.13,null,{"$f":"H64*F65","v":0.10270000000000001},0.13,null,{"$f":"K64*I65","v":0.10270000000000001},{"$f":"K65-H65","v":0},{"$f":"IF((H65)=0,\"\",(L65/H65))","v":0}]
[0,"Non-RPP (Other)",null,"Total Bill (including HST)",null,null,null,{"$f":"H64+H65","v":0.89270000000000005},null,null,{"$f":"K64+K65","v":0.89270000000000005},{"$f":"K66-H66","v":0},{"$f":"IF((H66)=0,\"\",(L66/H66))","v":0}]
[0,"Non-RPP (Other)",null,"Ontario Clean Energy Benefit 1",null,null,null,{"$f":"IF(E8=\"Yes\", ROUND(-H66*10%,2), 0)","v":0}]
[0,"Non-RPP (Other)_TOTAL",null,"Total Bill on Average IESO Wholesale Market Price",null,null,null,{"$f":"SUM(H66:H67)","v":0.89270000000000005},null,null,{"$f":"SUM(K66:K67)","v":0.89270000000000005},{"$f":"K68-H68","v":0},{"$f":"IF((H68)=0,\"\",(L68/H68))","v":0}]
[0,"Non-RPP (Other)"]

{"sheet":"lists","index":8,"n_rows":212,"n_cols":55,"rows_kept":212,"cut":false,"hidden":true,"merged":[[12,51,12,52],[11,51,11,52],[0,51,0,52],[1,51,1,52],[2,51,2,52],[3,51,3,52],[4,51,4,52],[5,51,5,52],[6,51,6,52],[7,51,7,52],[8,51,8,52],[9,51,9,52],[10,51,10,52],[13,51,13,52],[14,51,14,52],[15,51,15,52],[16,51,16,52],[17,51,17,52]]}
[null,"Embedded Distributor",{"$f":"COUNTA(B1:B17)","v":4},null,null,null,null,null,"A Standby Service Charge will be applied for a month where standby power is not provided. The applicable rate is the approved Distribution Volumetric Rate of the applicable service class and is applied to gross metered demand or contracted amount, whichever is greater. A monthly administration charge of $200, for simple metering arrangements, or $500, for complex metering arrangements, will also be applied.",null,null,"Loss Factors",null,"Units","Units1","Units2",null,null,null,null,null,null,null,null,null,"Account History","Account set up charge/change of occupancy charge (plus credit agency costs if applicable)","Total Loss Factor – Embedded Distributor – Hydro One Networks Inc.",null,null,null,null,null,null,null,null,null,"Algoma Power Inc.","Algoma Power Inc.",null,"DISTRIBUTED GENERATION [DGEN]","kW",null,null,null,"Sub-Total:  Delivery (Distribution and Retail Transmission)"]
["DISTRIBUTED GENERATION [DGEN]","General Service 3,000 to 4,999 kW",null,null,null,null,null,null,"Distribution Volumetric Rate",null,null,"Total Loss Factor – Primary Metered Customer",null,"$","$/kWh","$",null,null,null,null,null,null,null,null,null,"Account set up charge/change of occupancy charge","Administrative Billing Charge","Total Loss Factor – Primary Metered Customer",null,null,null,null,null,null,null,null,null,"Atikokan Hydro Inc.","Atikokan Hydro Inc.",null,"EMBEDDED DISTRIBUTOR","kW",null,null,null,"Wholesale Market Service Rate ",null,null,{"$f":"AU2*AV2","v":0},{"$f":"AU2","v":0},0,{"$f":"AX2*AY2","v":0},null,{"$f":"AZ2-AW2","v":0},{"$f":"BB2/AW2","v":{"$error":"#DIV/0!"}}]
["EMBEDDED DISTRIBUTOR","General Service 1,000 to 4,999 kW",null,null,null,null,null,null,"Distribution Volumetric Rate - $/kW of contracted amount",null,null,"Total Loss Factor – Primary Metered Customer < 5,000 kW",null,"$/kWh","$/kW","%",null,null,null,null,null,null,"MSC",null,null,"Account set up charge/change of occupancy charge (plus credit agency costs if applicable – Residential)","Bell Canada Pole Rentals","Total Loss Factor – Primary Metered Customer < 5,000 kW",null,null,null,null,null,null,null,null,null,"Attawapiskat Power Corp. ","Attawapiskat Power Corp. ",null,"EMBEDDED DISTRIBUTOR","kW",null,null,null,"Rural Rate Protection Charge",null,null,{"$f":"AU3*AV3","v":0},0,0,{"$f":"AX3*AY3","v":0},null,{"$f":"AZ3-AW3","v":0},{"$f":"BB3/AW3","v":{"$error":"#DIV/0!"}}]
["EMBEDDED DISTRIBUTOR","General Service Equal To Or Greater Than 1,500 kW - Interval Metered",null,null,null,null,null,null,"Distribution Wheeling Service Rate",null,null,"Total Loss Factor – Primary Metered Customer > 5,000 kW",null,"$/kW","$/kVA",null,null,null,null,null,null,null,"SM_Rate_Adder",null,null,"Account set up charge/change of occupancy charge (plus credit agency costs if applicable)","Clearance Pole Attachment charge $/pole/year","Total Loss Factor – Primary Metered Customer > 5,000 kW",null,null,null,null,null,null,null,null,null,"Bluewater Power Distribution Corporation","Bluewater Power Distribution Corporation",null,"FARMS - SINGLE PHASE ENERGY-BILLED [F1]","kWh",null,null,null,"Standard Supply Service – Administration Charge (if applicable)",null,null,{"$f":"AU4*AV4","v":0},0,0,{"$f":"AX4*AY4","v":0},null,{"$f":"AZ4-AW4","v":0},{"$f":"BB4/AW4","v":{"$error":"#DIV/0!"}}]
["FARMS - SINGLE PHASE ENERGY-BILLED [F1]",null,null,null,null,null,null,null,"Electricity Rate",null,null,"Total Loss Factor – Secondary Metered Customer",null,"$/kVA",null,null,null,null,null,null,null,null,"MSC_Rate_Rider_",null,null,"Arrears certificate","Collection of account charge – no disconnection","Total Loss Factor – Secondary Metered Customer",null,null,null,null,null,null,null,null,null,"Brant County Power Inc.","Brant County Power Inc.",null,"FARMS - THREE PHASE ENERGY-BILLED [F3]","kWh",null,null,null,"Sub-Total:  Regulatory",null,null,{"$f":"SUM(AW2:AW4)","v":0},null,null,{"$f":"SUM(AZ2:BA4)","v":0},null,{"$f":"AZ5-AW5","v":0},{"$f":"BB5/AW5","v":{"$error":"#DIV/0!"}}]
["FARMS - THREE PHASE ENERGY-BILLED [F3]",null,null,null,null,null,null,null,"Electricity Rate - All Additional kWh",null,null,"Total Loss Factor – Secondary Metered Customer < 5,000 kW",null,null,null,null,null,null,null,null,null,null,"VC",null,null,"Arrears certificate (credit reference)","Collection of account charge – no disconnection – after regular hours","Total Loss Factor – Secondary Metered Customer < 5,000 kW",null,null,null,null,null,null,null,null,null,"Brantford Power Inc.","Brantford Power Inc.",null,"GENERAL SERVICE - COMMERCIAL","kW",null,null,null,"Debt Retirement Charge (DRC)",null,null,{"$f":"AU6*AV6","v":0},{"$f":"AU6","v":0},{"$f":"AV6","v":0},{"$f":"AX6*AY6","v":0},null,{"$f":"AZ6-AW6","v":0},{"$f":"BB6/AW6","v":{"$error":"#DIV/0!"}}]
["GENERAL SERVICE - COMMERCIAL",null,null,null,null,null,null,null,"Electricity Rate - First 250 kWh",null,null,null,null,null,null,null,null,null,null,null,null,null,null,null,null,null,null,null,null,null,null,null,null,null,null,null,null,"Burlington Hydro Inc.","Burlington Hydro Inc.",null,"GENERAL SERVICE - INSTITUTIONAL","kW"]
["GENERAL SERVICE - INSTITUTIONAL",null,null,null,null,null,null,null,"Electricity Rate -All Additional kWh",null,null,"Total Loss Factor – Secondary Metered Customer > 5,000 kW",null,null,null,null,null,null,null,null,null,null,"VC_Rate_Rider_",null,null,"Charge to certify cheque","Collection of account charge – no disconnection - during regular business hours","Total Loss Factor – Secondary Metered Customer > 5,000 kW",null,null,null,null,null,null,null,null,null,"Cambridge and North Dumfries Hydro Inc.","Cambridge and North Dumfries Hydro Inc.",null,"GENERAL SERVICE 1,000 TO 2,999 KW","kW",null,null,null,"Total Bill on RPP (before taxes)",null,null,null,null,null,null,null,{"$f":"AZ8-AW8","v":0}]
["GENERAL SERVICE 1,000 TO 2,999 KW",null,null,null,null,null,null,null,"Electricity Rate First 1,000 kWh",null,null,"Distribution Loss Factor - Secondary Metered Customer < 5,000 kW",null,null,null,null,null,null,null,null,null,null,"VC_GA_Rate_Rider_kW_",null,null,"Collection of Account Charge – No Disconnection","Collection of account charge – no disconnection – during regular hours",null,null,null,null,null,null,null,null,null,null,"Canadian Niagara Power Inc.","Canadian Niagara Power Inc. - Eastern Ontario Power",null,"GENERAL SERVICE 1,000 TO 4,999 KW - INTERVAL METERS","kW",null,null,null,"HST",null,null,{"$f":"AV9*AW8","v":0},null,{"$f":"AV9","v":0},{"$f":"AY9*AZ8","v":0},null,{"$f":"AZ9-AW9","v":0},{"$f":"BB9/AW9","v":{"$error":"#DIV/0!"}}]
["GENERAL SERVICE 1,000 TO 4,999 KW",null,null,null,null,null,null,null,"Electricity Rate First 25,000 kWh",null,null,"Distribution Loss Factor - Secondary Metered Customer > 5,000 kW",null,null,null,null,null,null,null,null,null,null,"VC_LV_Rate",null,null,"Credit Card Convenience Charge","Collection/Disconnection/Load Limiter/Reconnection – if in Community",null,null,null,null,null,null,null,null,null,null,"Centre Wellington Hydro Ltd.","Canadian Niagara Power Inc. - Fort Erie",null,"GENERAL SERVICE 1,000 TO 4,999 KW (CO-GENERATION)","kW",null,null,null,"Total Bill (including HST)",null,null,{"$f":"AW9+AW8","v":0},null,null,{"$f":"AZ9+AZ8","v":0},null,{"$f":"AZ10-AW10","v":0},{"$f":"BB10/AW10","v":{"$error":"#DIV/0!"}}]
["GENERAL SERVICE 1,000 TO 4,999 KW - INTERVAL METERS",null,null,null,null,null,null,null,"Electricity Rate First 6,000 kWh",null,null,"Distribution Loss Factor - Primary Metered Customer < 5,000 kW",null,null,null,null,null,null,null,null,null,null,"RTSR_Network",null,null,"Credit check (plus credit agency costs)","Credit Card Convenience Charge",null,null,null,null,null,null,null,null,null,null,"Chapleau Public Utilities Corporation","Canadian Niagara Power Inc. - Port Colborne Hydro Inc.",null,"GENERAL SERVICE 1,000 TO 4,999 KW","kW",null,null,null,"Ontario Clean Energy Benefit (OCEB)",null,null,{"$f":"-0.1*AW10","v":0},null,{"$f":"AV11","v":0},{"$f":"-0.1*AZ10","v":0},null,{"$f":"AZ11-AW11","v":0},{"$f":"BB11/AW11","v":{"$error":"#DIV/0!"}}]
["GENERAL SERVICE 1,000 TO 4,999 KW (CO-GENERATION)",null,null,null,null,null,null,null,"Electricity Rate Next 1,500 kWh",null,null,"Distribution Loss Factor - Primary Metered Customer > 5,000 kW",null,null,null,null,null,null,null,null,null,null,"RTSR_Connection",null,null,"Credit reference Letter","Disconnect/Reconnect at meter – after regular hours",null,null,null,null,null,null,null,null,null,null,"Clinton Power Corporation","Centre Wellington Hydro Ltd.",null,"GENERAL SERVICE 1,500 TO 4,999 KW","kW",null,null,null,"Total Bill on RPP (including OCEB)",null,null,{"$f":"AW10+AW11","v":0},null,null,{"$f":"AZ10+AZ11","v":0},null,{"$f":"AZ12-AW12","v":0},{"$f":"BB12/AW12","v":{"$error":"#DIV/0!"}}]
["GENERAL SERVICE 1,500 TO 4,999 KW",null,null,null,null,null,null,null,"General Service 1,500 to 4,999 kW customer",null,null,null,null,null,null,null,null,null,null,null,null,null,null,null,null,null,null,null,null,null,null,null,null,null,null,null,null,"COLLUS Power Corporation","Chapleau Public Utilities Corporation",null,"GENERAL SERVICE 2,500 TO 4,999 KW","kW"]
["GENERAL SERVICE 2,500 TO 4,999 KW",null,null,null,null,null,null,null,"General Service 50 to 1,499 kW customer",null,null,"Total Loss Factor - Embedded Distributor",null,null,null,null,null,null,null,null,null,null,"RTSR_Network_Interval",null,null,"Credit reference/credit check (plus credit agency costs – General Service)","Disconnect/Reconnect at meter – during regular hours",null,null,null,null,null,null,null,null,null,null,"Cooperative Hydro Embrun Inc.","Clinton Power Corporation",null,"GENERAL SERVICE 3,000 TO 4,999 KW - INTERMEDIATE USE","kW",null,null,null,"Total Bill on TOU (before taxes)",null,null,null,null,null,null,null,{"$f":"AZ14-AW14","v":0}]
["GENERAL SERVICE 3,000 TO 4,999 KW",null,null,null,null,null,null,null,"General Service Large Use customer",null,null,"Total Loss Factor – Embedded Distributor – Hydro One Networks Inc.",null,null,null,null,null,null,null,null,null,null,"RTSR_Connection_Interval",null,null,"Credit Reference/credit check (plus credit agency costs)","Disconnect/Reconnect at pole – after regular hours",null,null,null,null,null,null,null,null,null,null,"E.L.K. Energy Inc.","COLLUS Power Corporation",null,"GENERAL SERVICE 3,000 TO 4,999 KW - INTERVAL METERED","kW",null,null,null,"HST",null,null,{"$f":"AV15*AW14","v":0},null,{"$f":"AV15","v":0},{"$f":"AY15*AZ14","v":0},null,{"$f":"AZ15-AW15","v":0},{"$f":"BB15/AW15","v":{"$error":"#DIV/0!"}}]
["GENERAL SERVICE 3,000 TO 4,999 KW - INTERMEDIATE USE",null,null,null,null,null,null,null,"Green Energy Act Initiatives Funding Adder - effective until the date of the next cost of service-based rate order",null,null,null,null,null,null,null,null,null,null,null,null,null,"RTSR_Network_Interval_GR1000kW",null,null,"Dispute Test – Commercial self contained -- MC","Disconnect/Reconnect at pole – during regular hours",null,null,null,null,null,null,null,null,null,null,"Enersource Hydro Mississauga Inc.","Cooperative Hydro Embrun Inc.",null,"GENERAL SERVICE 3,000 TO 4,999 KW - TIME OF USE","kW",null,null,null,"Total Bill (including HST)",null,null,{"$f":"AW15+AW14","v":0},null,null,{"$f":"AZ15+AZ14","v":0},null,{"$f":"AZ16-AW16","v":0},{"$f":"BB16/AW16","v":{"$error":"#DIV/0!"}}]
["GENERAL SERVICE 3,000 TO 4,999 KW - INTERVAL METERED",null,null,null,null,null,null,null,"Green Energy Act Plan Funding Adder",null,null,null,null,null,null,null,null,null,null,null,null,null,"RTSR_Connection_Interval_GR1000kW",null,null,"Dispute Test – Commercial TT -- MC","Disconnect/Reconnect Charge – At Meter – After Hours",null,null,null,null,null,null,null,null,null,null,"Entegrus Powerlines Inc.","E.L.K. Energy Inc.",null,"GENERAL SERVICE 3,000 TO 4,999 KW","kW",null,null,null,"Ontario Clean Energy Benefit (OCEB)",null,null,{"$f":"-0.1*AW16","v":0},null,{"$f":"AV17","v":0},{"$f":"-0.1*AZ16","v":0},null,{"$f":"AZ17-AW17","v":0},{"$f":"BB17/AW17","v":{"$error":"#DIV/0!"}}]
["GENERAL SERVICE 3,000 TO 4,999 KW - TIME OF USE",null,null,null,null,null,null,null,"Green Energy Act Plan Funding Adder - effective April 1, 2013 until March 31, 2014",null,null,null,null,null,null,null,null,null,null,null,null,null,"RTSR_Line_Connection",null,null,"Dispute Test – Residential","Disconnect/Reconnect Charge – At Meter – During Regular Hours",null,null,null,null,null,null,null,null,null,null,"ENWIN Utilities Ltd.","Enersource Hydro Mississauga Inc.",null,"GENERAL SERVICE 50 TO 1,000 KW - INTERVAL METERS","kW",null,null,null,"Total Bill on TOU (including OCEB)",null,null,{"$f":"AW16+AW17","v":0},null,null,{"$f":"AZ16+AZ17","v":0},null,{"$f":"AZ18-AW18","v":0},{"$f":"BB18/AW18","v":{"$error":"#DIV/0!"}}]
["GENERAL SERVICE 50 TO 1,000 KW",null,null,null,null,null,null,null,"Green Energy Act Plan Funding Adder - effective April 1, 2014 until March 31, 2015",null,null,null,null,null,null,null,null,null,null,null,null,null,"RTSR_Transformer_Connection",null,null,"Duplicate Invoices for previous billing","Disconnect/Reconnect Charge – At Pole – After Hours",null,null,null,null,null,null,null,null,null,null,"Erie Thames Powerlines Corporation","Entegrus Powerlines Inc. - Chatham-Kent",null,"GENERAL SERVICE 50 TO 1,000 KW - NON INTERVAL METERS","kW"]
["GENERAL SERVICE 50 TO 1,000 KW - INTERVAL METERS",null,null,null,null,null,null,null,"ICM Rate Rider (2014) - in effect until the effective date of the next cost of service rates",null,null,null,null,null,null,null,null,null,null,null,null,null,"WMSR",null,null,"Easement Letter","Disconnect/Reconnect Charge – At Pole – During Regular Hours",null,null,null,null,null,null,null,null,null,null,"Espanola Regional Hydro Distribution Corporation","Entegrus Powerlines Inc. - Dutton",null,"GENERAL SERVICE 50 TO 1,000 KW","kW"]
["GENERAL SERVICE 50 TO 1,000 KW - NON INTERVAL METERS",null,null,null,null,null,null,null,"Low Voltage Service Charge",null,null,null,null,null,null,null,null,null,null,null,null,null,"RRRP",null,null,"Income Tax Letter","Disconnect/Reconnect Charges for non payment of account - At Meter After Hours",null,null,null,null,null,null,null,null,null,null,"Essex Powerlines Corporation","Entegrus Powerlines Inc. - Newbury",null,"GENERAL SERVICE 50 TO 1,499 KW - INTERVAL METERED","kW"]
["GENERAL SERVICE 50 TO 1,499 KW",null,null,null,null,null,null,null,"Low Voltage Service Rate",null,null,null,null,null,null,null,null,null,null,null,null,null,"SPC",null,null,"Interval Meter Interrogation","Disconnect/Reconnect charges for non payment of account – at meter after regular hours",null,null,null,null,null,null,null,null,null,null,"Festival Hydro Inc.","Entegrus Powerlines Inc. - Strathroy, Mounth Brydges & Parkhill",null,"GENERAL SERVICE 50 TO 1,499 KW","kW"]
["GENERAL SERVICE 50 TO 1,499 KW - INTERVAL METERED",null,null,null,null,null,null,null,"Low Voltage Volumetric Rate",null,null,null,null,null,null,null,null,null,null,null,null,null,"DRC",null,null,"Interval meter request change","Disconnect/Reconnect Charges for non payment of account - At Meter During Regular Hours",null,null,null,null,null,null,null,null,null,null,"Fort Albany Power Corporation","ENWIN Utilities Ltd.",null,"GENERAL SERVICE 50 TO 2,499 KW","kW"]
["GENERAL SERVICE 50 TO 2,499 KW",null,null,null,null,null,null,null,"LRAM Rate Rider - Effective Until April 30, 2015",null,null,null,null,null,null,null,null,null,null,null,null,null,"SSS",null,null,"Legal letter","Disconnect/Reconnect charges for non payment of account – at meter during regular hours",null,null,null,null,null,null,null,null,null,null,"Fort Frances Power Corporation","Erie Thames Powerlines Corporation",null,"GENERAL SERVICE 50 TO 2,999 KW - INTERVAL METERED","kW"]
["GENERAL SERVICE 50 TO 2,999 KW",null,null,null,null,null,null,null,"Minimum Distribution Charge - per KW of maximum billing demand in the previous 11 months",null,null,null,null,null,null,null,null,null,null,null,null,null,"SFLF",null,null,"Legal letter charge","Disconnect/Reconnect charges for non payment of account – at pole after regular hours",null,null,null,null,null,null,null,null,null,null,"Greater Sudbury Hydro Inc.","Espanola Regional Hydro Distribution Corporation",null,"GENERAL SERVICE 50 TO 2,999 KW - TIME OF USE","kW"]
["GENERAL SERVICE 50 TO 2,999 KW - INTERVAL METERED","January",null,null,null,null,null,null,"Monthly Distribution Wheeling Service Rate - Dedicated LV Line",null,null,null,null,null,null,null,null,null,null,null,null,null,"DLF_Secondary_LT_5000kW",null,null,"Meter dispute charge plus Measurement Canada fees (if meter found correct)","Disconnect/Reconnect charges for non payment of account – at pole during regular hours",null,null,null,null,null,null,null,null,null,null,"Grimsby Power Inc.","Essex Powerlines Corporation",null,"GENERAL SERVICE 50 TO 2,999 KW","kW"]
["GENERAL SERVICE 50 TO 2,999 KW - TIME OF USE","February",null,null,null,null,null,null,"Monthly Distribution Wheeling Service Rate - Hydro One Networks",null,null,null,null,null,null,null,null,null,null,null,null,null,"DLF_Secondary_GT_5000kW",null,null,"Notification charge","Disconnect/Reconnection for >300 volts - after regular hours",null,null,null,null,null,null,null,null,null,null,"Guelph Hydro Electric Systems Inc.","Festival Hydro Inc.",null,"GENERAL SERVICE 50 TO 4,999 KW - INTERVAL METERED","kW"]
["GENERAL SERVICE 50 TO 4,999 KW","March",null,null,null,null,null,null,"Monthly Distribution Wheeling Service Rate - Shared LV Line",null,null,null,null,null,null,null,null,null,null,null,null,null,"DLF_Primary_LT_5000kW",null,null,"Pulling Post Dated Cheques","Disconnect/Reconnection for >300 volts - during regular hours",null,null,null,null,null,null,null,null,null,null,"Haldimand County Hydro Inc.","Festival Hydro Inc. - Hensall",null,"GENERAL SERVICE 50 TO 4,999 KW - TIME OF USE","kW"]
["GENERAL SERVICE 50 TO 4,999 KW - INTERVAL METERED","April",null,null,null,null,null,null,"Monthly Distribution Wheeling Service Rate - Waterloo North Hydro",null,null,null,null,null,null,null,null,null,null,null,null,null,"DLF_Primary_GT_5000kW",null,null,"Request for other billing information","Disposal of Concrete Poles",null,null,null,null,null,null,null,null,null,null,"Halton Hills Hydro Inc.","Fort Albany Power Corporation",null,"GENERAL SERVICE 50 TO 4,999 KW (COGENERATION)","kW"]
["GENERAL SERVICE 50 TO 4,999 KW - TIME OF USE","May",null,null,null,null,null,null,"Rate Rider for Application of Tax Change - effective until April 30, 2015",null,null,null,null,null,null,null,null,null,null,null,null,null,"TLF_Secondary_LT_5000kW",null,null,"Returned cheque (plus bank charges)","Dispute Test – Commercial TT -- MC",null,null,null,null,null,null,null,null,null,null,"Hearst Power Distribution Company Limited","Fort Frances Power Corporation",null,"GENERAL SERVICE 50 TO 4,999 KW (FORMERLY TIME OF USE)","kW"]
["GENERAL SERVICE 50 TO 4,999 KW (COGENERATION)","June",null,null,null,null,null,null,"Rate Rider for Application of Tax Change - effective until December 31, 2014",null,null,null,null,null,null,null,null,null,null,null,null,null,"TLF_Secondary_GT_5000kW",null,null,"Returned cheque charge (plus bank charges)","Install/Remove load control device – after regular hours",null,null,null,null,null,null,null,null,null,null,"Horizon Utilities Corporation","Greater Sudbury Hydro Inc.",null,"GENERAL SERVICE 50 TO 4,999 KW","kW"]
["GENERAL SERVICE 50 TO 4,999 KW (FORMERLY TIME OF USE)","July",null,null,null,null,null,null,"Rate Rider for Application of Tax Change (2014) - effective until April 30, 2015",null,null,null,null,null,null,null,null,null,null,null,null,null,"TLF_Primary_LT_5000kW",null,null,"Special Billing Service (aggregation)","Install/Remove load control device – during regular hours",null,null,null,null,null,null,null,null,null,null,"Hydro 2000 Inc.","Grimsby Power Inc.",null,"GENERAL SERVICE 50 TO 499 KW","kW"]
["GENERAL SERVICE 50 TO 499 KW","August",null,null,null,null,null,null,"Rate Rider for Application of Tax Change (per connection) - effective until April 30, 2015",null,null,null,null,null,null,null,null,null,null,null,null,null,"TLF_Primary_GT_5000kW",null,null,"Special Billing Service (sub-metering charge per meter)","Interval Meter Interrogation",null,null,null,null,null,null,null,null,null,null,"Hydro Hawkesbury Inc.","Guelph Hydro Electric Systems Inc.",null,"GENERAL SERVICE 50 TO 699 KW","kW"]
["GENERAL SERVICE 50 TO 699 KW","September",null,null,null,null,null,null,"Rate Rider for CGAAP Accounting Changes (2013) - effective until April 30, 2017",null,null,null,null,null,null,null,null,null,null,null,null,null,"TLF_EmbeddedDistributor",null,null,"Special meter reads","Interval Meter Load Management Tool Charge $/month",null,null,null,null,null,null,null,null,null,null,"Hydro One Brampton Networks Inc.","Haldimand County Hydro Inc.",null,"GENERAL SERVICE 50 TO 999 KW - INTERVAL METERED","kW"]
["GENERAL SERVICE 50 TO 999 KW","October",null,null,null,null,null,null,"Rate Rider for Deferral/Variance Account (2012) - effective unitl April 30, 2016",null,null,null,null,null,null,null,null,null,null,null,null,null,null,null,null,"Statement of Account","Interval meter request change",null,null,null,null,null,null,null,null,null,null,"Hydro One Networks Inc.","Halton Hills Hydro Inc.",null,"GENERAL SERVICE 50 TO 999 KW","kW"]
["GENERAL SERVICE 50 TO 999 KW - INTERVAL METERED","November",null,null,null,null,null,null,"Rate Rider for Deferral/Variance Account Disposition – effective until April 30, 2015",null,null,null,null,null,null,null,null,null,null,null,null,null,null,null,null,"Unprocessed Payment Charge (plus bank charges)","Late Payment – per annum",null,null,null,null,null,null,null,null,null,null,"Hydro Ottawa Limited","Hearst Power Distribution Company Limited",null,"GENERAL SERVICE 500 TO 4,999 KW","kW"]
["GENERAL SERVICE 500 TO 4,999 KW","December",null,null,null,null,null,null,"Rate Rider for Deferral/Variance Account Disposition (2012) - effective until April 30, 2016",null,null,null,null,null,null,null,null,null,null,null,null,null,null,null,null,null,"Late Payment – per month",null,null,null,null,null,null,null,null,null,null,"Innisfil Hydro Distribution Systems Limited","Horizon Utilities Corporation",null,"GENERAL SERVICE 700 TO 4,999 KW","kW"]
["GENERAL SERVICE 700 TO 4,999 KW",null,null,null,null,null,null,null,"Rate Rider for Deferral/Variance Account Disposition (2013) - effective until April 30, 2014",null,null,null,null,null,null,null,null,null,null,null,null,null,null,null,null,null,"Layout fees",null,null,null,null,null,null,null,null,null,null,"Kashechewan Power Corporation","Hydro 2000 Inc.",null,"GENERAL SERVICE DEMAND BILLED (50 KW AND ABOVE) [GSD]","kW"]
["GENERAL SERVICE DEMAND BILLED (50 KW AND ABOVE) [GSD]",null,null,null,null,null,null,null,"Rate Rider for Deferral/Variance Account Disposition (2014) - effective until April 28, 2016",null,null,null,null,null,null,null,null,null,null,null,null,null,null,null,null,null,"Meter dispute charge plus Measurement Canada fees (if meter found correct)",null,null,null,null,null,null,null,null,null,null,"Kenora Hydro Electric Corporation Ltd.","Hydro Hawkesbury Inc.",null,"GENERAL SERVICE ENERGY BILLED (LESS THAN 50 KW) [GSE-METERED]","kWh"]
["GENERAL SERVICE ENERGY BILLED (LESS THAN 50 KW) [GSE-METERED]",null,null,null,null,null,null,null,"Rate Rider for Deferral/Variance Account Disposition (2014) - effective until April 30, 2015",null,null,null,null,null,null,null,null,null,null,null,null,null,null,null,null,null,"Meter Interrogation Charge",null,null,null,null,null,null,null,null,null,null,"Kingston Hydro Corporation","Hydro One Brampton Networks Inc.",null,"GENERAL SERVICE ENERGY BILLED (LESS THAN TO 50 KW) [GSE-UNMETERED]","kWh"]
["GENERAL SERVICE ENERGY BILLED (LESS THAN TO 50 KW) [GSE-UNMETERED]",null,null,null,null,null,null,null,"Rate Rider for Deferral/Variance Account Disposition (2014) - effective until Decembeer 31, 2015",null,null,null,null,null,null,null,null,null,null,null,null,null,null,null,null,null,"Missed Service Appointment",null,null,null,null,null,null,null,null,null,null,"Kitchener-Wilmot Hydro Inc.","Hydro One Networks Inc.",null,"GENERAL SERVICE EQUAL TO OR GREATER THAN 1,500 KW - INTERVAL METERED","kW"]
["GENERAL SERVICE EQUAL TO OR GREATER THAN 1,500 KW",null,null,null,null,null,null,null,"Rate Rider for Deferral/Variance Account Disposition (2014) - effective until December 30, 2015",null,null,null,null,null,null,null,null,null,null,null,null,null,null,null,null,null,"Norfolk Pole Rentals – Billed",null,null,null,null,null,null,null,null,null,null,"Lakefront Utilities Inc.","Hydro Ottawa Limited",null,"GENERAL SERVICE EQUAL TO OR GREATER THAN 1,500 KW","kW"]
["GENERAL SERVICE EQUAL TO OR GREATER THAN 1,500 KW - INTERVAL METERED",null,null,null,null,null,null,null,"Rate Rider for Deferral/Variance Account Disposition (2014) - effective until December 31, 2014",null,null,null,null,null,null,null,null,null,null,null,null,null,null,null,null,null,"Optional Interval/TOU Meter charge $/month",null,null,null,null,null,null,null,null,null,null,"Lakeland Power Distribution Ltd.","Innisfil Hydro Distribution Systems Limited",null,"GENERAL SERVICE GREATER THAN 1,000 KW","kW"]
["GENERAL SERVICE GREATER THAN 1,000 KW",null,null,null,null,null,null,null,"Rate Rider for Deferral/Variance Account Disposition (2014) - effective until December 31, 2015",null,null,null,null,null,null,null,null,null,null,null,null,null,null,null,null,null,"Overtime Locate",null,null,null,null,null,null,null,null,null,null,"London Hydro Inc.","Kashechewan Power Corporation",null,"GENERAL SERVICE INTERMEDIATE 1,000 TO 4,999 KW","kW"]
["GENERAL SERVICE GREATER THAN 50 kW - WMP",null,null,null,null,null,null,null,"Rate Rider for Deferral/Variance Account Dispositon (2012) - effective until April 30, 2016",null,null,null,null,null,null,null,null,null,null,null,null,null,null,null,null,null,"Owner Requested Disconnection/Reconnection – after regular hours",null,null,null,null,null,null,null,null,null,null,"Midland Power Utility Corporation","Kenora Hydro Electric Corporation Ltd.",null,"GENERAL SERVICE INTERMEDIATE RATE CLASS 1,000 TO 4,999 KW (FORMERLY GENERAL SERVICE > 50 KW CUSTOMERS)","kW"]
["GENERAL SERVICE INTERMEDIATE 1,000 TO 4,999 KW",null,null,null,null,null,null,null,"Rate Rider for Disposition of Accounting Changes Under CGAAP Account 1576 - effective until April 30, 2016",null,null,null,null,null,null,null,null,null,null,null,null,null,null,null,null,null,"Owner Requested Disconnection/Reconnection – during regular hours",null,null,null,null,null,null,null,null,null,null,"Milton Hydro Distribution inc.","Kingston Hydro Corporation",null,"GENERAL SERVICE INTERMEDIATE RATE CLASS 1,000 TO 4,999 KW (FORMERLY LARGE USE CUSTOMERS)","kW"]
["GENERAL SERVICE INTERMEDIATE RATE CLASS 1,000 TO 4,999 KW (FORMERLY GENERAL SERVICE > 50 KW CUSTOMERS)",null,null,null,null,null,null,null,"Rate Rider for Disposition of Deferral/Variance Accounts (2010) - effective until December 31, 2014",null,null,null,null,null,null,null,null,null,null,null,null,null,null,null,null,null,"Returned cheque (plus bank charges)",null,null,null,null,null,null,null,null,null,null,"Newmarket - Tay Power Distribution Ltd.","Kitchener-Wilmot Hydro Inc.",null,"GENERAL SERVICE LESS THAN 50 KW - SINGLE PHASE ENERGY-BILLED [G1]","kWh"]
["GENERAL SERVICE INTERMEDIATE RATE CLASS 1,000 TO 4,999 KW (FORMERLY LARGE USE CUSTOMERS)",null,null,null,null,null,null,null,"Rate Rider for Disposition of Deferral/Variance Accounts (2011) - effective until April 30, 2015",null,null,null,null,null,null,null,null,null,null,null,null,null,null,null,null,null,"Rural system expansion / line connection fee",null,null,null,null,null,null,null,null,null,null,"Niagara Peninsula Energy Inc.","Lakefront Utilities Inc.",null,"GENERAL SERVICE LESS THAN 50 KW - THREE PHASE ENERGY-BILLED [G3]","kWh"]
["GENERAL SERVICE LESS THAN 50 KW",null,null,null,null,null,null,null,"Rate Rider for Disposition of Deferral/Variance Accounts (2011) - effective until April 30, 2016",null,null,null,null,null,null,null,null,null,null,null,null,null,null,null,null,null,"Same Day Open Trench",null,null,null,null,null,null,null,null,null,null,"Niagara-on-the-Lake Hydro Inc.","Lakeland Power Distribution Ltd.",null,"GENERAL SERVICE LESS THAN 50 KW - TRANSMISSION CLASS ENERGY-BILLED [T]","kWh"]
["GENERAL SERVICE LESS THAN 50 KW - SINGLE PHASE ENERGY-BILLED [G1]",null,null,null,null,null,null,null,"Rate Rider for Disposition of Deferral/Variance Accounts (2012) - effective until April 30, 2014",null,null,null,null,null,null,null,null,null,null,null,null,null,null,null,null,null,"Scheduled Day Open Trench",null,null,null,null,null,null,null,null,null,null,"Norfolk Power Distribution Inc.","London Hydro Inc.",null,"GENERAL SERVICE LESS THAN 50 KW - URBAN ENERGY-BILLED [UG]","kWh"]
["GENERAL SERVICE LESS THAN 50 KW - THREE PHASE ENERGY-BILLED [G3]",null,null,null,null,null,null,null,"Rate Rider for Disposition of Deferral/Variance Accounts (2012) - effective until April 30, 2015",null,null,null,null,null,null,null,null,null,null,null,null,null,null,null,null,null,"Service call – after regular hours",null,null,null,null,null,null,null,null,null,null,"North Bay Hydro Distribution Limited","Midland Power Utility Corporation",null,"GENERAL SERVICE LESS THAN 50 KW","kWh"]
["GENERAL SERVICE LESS THAN 50 KW - TRANSMISSION CLASS ENERGY-BILLED [T]",null,null,null,null,null,null,null,"Rate Rider for Disposition of Deferral/Variance Accounts (2012) - effective until April 30, 2016",null,null,null,null,null,null,null,null,null,null,null,null,null,null,null,null,null,"Service call – customer owned equipment",null,null,null,null,null,null,null,null,null,null,"Northern Ontario Wires Inc.","Milton Hydro Distribution inc.",null,"GENERAL SERVICE SINGLE PHASE - G1","kW"]
["GENERAL SERVICE LESS THAN 50 KW - URBAN ENERGY-BILLED [UG]",null,null,null,null,null,null,null,"Rate Rider for Disposition of Deferral/Variance Accounts (2012) - effective until August 31, 2014",null,null,null,null,null,null,null,null,null,null,null,null,null,null,null,null,null,"Service Call – Customer-owned Equipment – After Regular Hours",null,null,null,null,null,null,null,null,null,null,"Oakville Hydro Electricity Distribution Inc.","Newmarket - Tay Power Distribution Ltd. - Newmarket",null,"GENERAL SERVICE THREE PHASE - G3","kW"]
["GENERAL SERVICE SINGLE PHASE - G1",null,null,null,null,null,null,null,"Rate Rider for Disposition of Deferral/Variance Accounts (2012) - effective until December 31, 2015",null,null,null,null,null,null,null,null,null,null,null,null,null,null,null,null,null,"Service Call – Customer-owned Equipment – During Regular Hours",null,null,null,null,null,null,null,null,null,null,"Orangeville Hydro Limited","Newmarket - Tay Power Distribution Ltd. - Tay",null,"INTERMEDIATE USERS","kW"]
["GENERAL SERVICE THREE PHASE - G3",null,null,null,null,null,null,null,"Rate Rider for Disposition of Deferral/Variance Accounts (2012) - effective until December 31, 2016 Applicable only in the former service area of Clinton Power",null,null,null,null,null,null,null,null,null,null,null,null,null,null,null,null,null,"Service Charge for onsite interrogation of interval meter due to customer phone line failure - required weekly until line repaired $ 6",null,null,null,null,null,null,null,null,null,null,"Orillia Power Distribution Corporation","Niagara Peninsula Energy Inc. - Niagara Falls",null,"INTERMEDIATE WITH SELF GENERATION","kW"]
["INTERMEDIATE USERS",null,null,null,null,null,null,null,"Rate Rider for Disposition of Deferral/Variance Accounts (2012) – effective until December 31, 2016 Applicable only in the former service area of Clinton Power",null,null,null,null,null,null,null,null,null,null,null,null,null,null,null,null,null,"Service Layout - Commercial",null,null,null,null,null,null,null,null,null,null,"Oshawa PUC Networks Inc.","Niagara Peninsula Energy Inc. - Peninsula West",null,"LARGE USE - 3TS","kW"]
["INTERMEDIATE WITH SELF GENERATION",null,null,null,null,null,null,null,"Rate Rider for Disposition of Deferral/Variance Accounts (2012) - effective until January 31, 2014",null,null,null,null,null,null,null,null,null,null,null,null,null,null,null,null,null,"Service Layout - ResidentiaI",null,null,null,null,null,null,null,null,null,null,"Ottawa River Power Corporation","Niagara-on-the-Lake Hydro Inc.",null,"LARGE USE - FORD ANNEX","kW"]
["LARGE USE",null,null,null,null,null,null,null,"Rate Rider for Disposition of Deferral/Variance Accounts (2012) - effective until June 30, 2014",null,null,null,null,null,null,null,null,null,null,null,null,null,null,null,null,null,"Special Billing Service (sub-metering charge per meter)",null,null,null,null,null,null,null,null,null,null,"Parry Sound Power Corporation","Norfolk Power Distribution Inc.",null,"LARGE USE - REGULAR","kW"]
["LARGE USE - 3TS",null,null,null,null,null,null,null,"Rate Rider for Disposition of Deferral/Variance Accounts (2013) - Applicable only to Wholesale Market Participants - effective until April 30, 2015",null,null,null,null,null,null,null,null,null,null,null,null,null,null,null,null,null,"Special meter reads",null,null,null,null,null,null,null,null,null,null,"Peterborough Distribution Incorporated","North Bay Hydro Distribution Limited",null,"LARGE USE > 5000 KW","kW"]
["LARGE USE - FORD ANNEX",null,null,null,null,null,null,null,"Rate Rider for Disposition of Deferral/Variance Accounts (2013) - effective until April 30, 2014",null,null,null,null,null,null,null,null,null,null,null,null,null,null,null,null,null,"Specific Charge for Access to the Power Poles - $/pole/year",null,null,null,null,null,null,null,null,null,null,"PowerStream Inc.","Northern Ontario Wires Inc.",null,"LARGE USE","kW"]
["LARGE USE - REGULAR",null,null,null,null,null,null,null,"Rate Rider for Disposition of Deferral/Variance Accounts (2013) - effective until April 30, 2015",null,null,null,null,null,null,null,null,null,null,null,null,null,null,null,null,null,"Specific Charge for Bell Canada Access to the Power Poles – per pole/year",null,null,null,null,null,null,null,null,null,null,"PUC Distribution Inc.","Oakville Hydro Electricity Distribution Inc.",null,"microFIT","$"]
["LARGE USE > 5000 KW",null,null,null,null,null,null,null,"Rate Rider for Disposition of Deferral/Variance Accounts (2013) - effective until April 30, 2015, not applicable to Wholesale Market Participants",null,null,null,null,null,null,null,null,null,null,null,null,null,null,null,null,null,"Switching for company maintenance – Charge based on Time and Materials",null,null,null,null,null,null,null,null,null,null,"Renfrew Hydro Inc.","Orangeville Hydro Limited",null,"RESIDENTIAL - HENSALL","kWh"]
["microFIT",null,null,null,null,null,null,null,"Rate Rider for Disposition of Deferral/Variance Accounts (2013) - effective until April 30, 2017",null,null,null,null,null,null,null,null,null,null,null,null,null,null,null,null,null,"Temporary Service – Install & remove – overhead – no transformer",null,null,null,null,null,null,null,null,null,null,"Rideau St. Lawrence Distribution Inc.","Orillia Power Distribution Corporation",null,"RESIDENTIAL - HIGH DENSITY [R1]","kWh"]
["RESIDENTIAL",null,null,null,null,null,null,null,"Rate Rider for Disposition of Deferral/Variance Accounts (2013) - effective until August 31, 2014",null,null,null,null,null,null,null,null,null,null,null,null,null,null,null,null,null,"Temporary Service – Install & remove – overhead – with transformer",null,null,null,null,null,null,null,null,null,null,"Sioux Lookout Hydro Inc.","Oshawa PUC Networks Inc.",null,"RESIDENTIAL - LOW DENSITY [R2]","kWh"]
["RESIDENTIAL - HENSALL",null,null,null,null,null,null,null,"Rate Rider for Disposition of Deferral/Variance Accounts (2013) - effective until December 31, 2014",null,null,null,null,null,null,null,null,null,null,null,null,null,null,null,null,null,"Temporary Service – Install & remove – underground – no transformer",null,null,null,null,null,null,null,null,null,null,"St. Thomas Energy Inc.","Ottawa River Power Corporation",null,"RESIDENTIAL - MEDIUM DENSITY [R1]","kWh"]
["RESIDENTIAL - HIGH DENSITY [R1]",null,null,null,null,null,null,null,"Rate Rider for Disposition of Deferral/Variance Accounts (2013) - effective until May 31, 2014",null,null,null,null,null,null,null,null,null,null,null,null,null,null,null,null,null,"Temporary service install & remove – overhead – no transformer",null,null,null,null,null,null,null,null,null,null,"Thunder Bay Hydro Electricity Distribution Inc.","Parry Sound Power Corporation",null,"RESIDENTIAL - NORMAL DENSITY [R2]","kWh"]
["RESIDENTIAL - LOW DENSITY [R2]",null,null,null,null,null,null,null,"Rate Rider for Disposition of Deferred PILs Variance Account 1562 - effective until March 31, 2016",null,null,null,null,null,null,null,null,null,null,null,null,null,null,null,null,null,"Temporary Service Install & Remove – Overhead – With Transformer",null,null,null,null,null,null,null,null,null,null,"Tillsonburg Hydro Inc.","Peterborough Distribution Incorporated",null,"RESIDENTIAL - TIME OF USE","kWh"]
["RESIDENTIAL - MEDIUM DENSITY [R1]",null,null,null,null,null,null,null,"Rate Rider for Disposition of Deferred PILs Variance Account 1562 (2012) - effective until April 30, 2015",null,null,null,null,null,null,null,null,null,null,null,null,null,null,null,null,null,"Temporary Service Install & Remove – Underground – No Transformer",null,null,null,null,null,null,null,null,null,null,"Toronto Hydro-Electric System Limited","PowerStream Inc. - Barrie",null,"RESIDENTIAL - URBAN [UR]","kWh"]
["RESIDENTIAL - NORMAL DENSITY [R2]",null,null,null,null,null,null,null,"Rate Rider for Disposition of Deferred PILs Variance Account 1562 (2012) - effective until April 30, 2016",null,null,null,null,null,null,null,null,null,null,null,null,null,null,null,null,null,"Temporary service installation and removal – overhead – no transformer",null,null,null,null,null,null,null,null,null,null,"Veridian Connections Inc.","PowerStream Inc. - South",null,"RESIDENTIAL REGULAR","kWh"]
["RESIDENTIAL - TIME OF USE",null,null,null,null,null,null,null,"Rate Rider for Disposition of Deferred PILs Variance Account 1562 (2nd Installment - 2012) - effective until April 30, 2016",null,null,null,null,null,null,null,null,null,null,null,null,null,null,null,null,null,"Temporary service installation and removal – overhead – with transformer",null,null,null,null,null,null,null,null,null,null,"Wasaga Distribution Inc.","PUC Distribution Inc.",null,"RESIDENTIAL","kWh"]
["RESIDENTIAL - URBAN [UR]",null,null,null,null,null,null,null,"Rate Rider for Disposition of Deferred PILs Variance Account 1562 (per connection) (2012) - effective until April 30, 2015",null,null,null,null,null,null,null,null,null,null,null,null,null,null,null,null,null,"Temporary service installation and removal – underground – no transformer",null,null,null,null,null,null,null,null,null,null,"Waterloo North Hydro Inc.","Renfrew Hydro Inc.",null,"RESIDENTIAL SUBURBAN SEASONAL","kWh"]
["RESIDENTIAL REGULAR",null,null,null,null,null,null,null,"Rate Rider for Disposition of Deferred PILs Variance Account 1562 (per connection) (2012) - effective until April 30, 2016",null,null,null,null,null,null,null,null,null,null,null,null,null,null,null,null,null,null,null,null,null,null,null,null,null,null,null,null,"Welland Hydro-Electric System Corp.","Rideau St. Lawrence Distribution Inc.",null,"RESIDENTIAL SUBURBAN","kWh"]
["RESIDENTIAL SUBURBAN",null,null,null,null,null,null,null,"Rate Rider for Disposition of Global Adjustment Sub-Account (2011) - effective until April 30, 2015 Applicable only for Non-RPP Customers",null,null,null,null,null,null,null,null,null,null,null,null,null,null,null,null,null,null,null,null,null,null,null,null,null,null,null,null,"Wellington North Power Inc.","Sioux Lookout Hydro Inc.",null,"RESIDENTIAL SUBURBAN YEAR ROUND","kWh"]
["RESIDENTIAL SUBURBAN SEASONAL",null,null,null,null,null,null,null,"Rate Rider for Disposition of Global Adjustment Sub-Account (2011) - effective until April 30, 2016 Applicable only for Non-RPP Customers",null,null,null,null,null,null,null,null,null,null,null,null,null,null,null,null,null,null,null,null,null,null,null,null,null,null,null,null,"West Coast Huron Energy Inc.","St. Thomas Energy Inc.",null,"RESIDENTIAL URBAN","kWh"]
["RESIDENTIAL SUBURBAN YEAR ROUND",null,null,null,null,null,null,null,"Rate Rider for Disposition of Global Adjustment Sub-Account (2012) - effective until April 30, 2014 Applicable only for Non-RPP Customers",null,null,null,null,null,null,null,null,null,null,null,null,null,null,null,null,null,null,null,null,null,null,null,null,null,null,null,null,"West Perth Power Inc.","Thunder Bay Hydro Electricity Distribution Inc.",null,"RESIDENTIAL URBAN YEAR-ROUND","kWh"]
["RESIDENTIAL URBAN",null,null,null,null,null,null,null,"Rate Rider for Disposition of Global Adjustment Sub-Account (2012) - effective until April 30, 2015 Applicable only for Non-RPP Customers",null,null,null,null,null,null,null,null,null,null,null,null,null,null,null,null,null,null,null,null,null,null,null,null,null,null,null,null,"Westario Power Inc.","Tillsonburg Hydro Inc.",null,"SEASONAL RESIDENTIAL - HIGH DENSITY [R3]","kWh"]
["RESIDENTIAL URBAN YEAR-ROUND",null,null,null,null,null,null,null,"Rate Rider for Disposition of Global Adjustment Sub-Account (2012) - effective until April 30, 2015 Applicatble only for Non-RPP Customers",null,null,null,null,null,null,null,null,null,null,null,null,null,null,null,null,null,null,null,null,null,null,null,null,null,null,null,null,"Whitby Hydro Electric Corporation","Toronto Hydro-Electric System Limited",null,"SEASONAL RESIDENTIAL - NORMAL DENSITY [R4]","kWh"]
["SEASONAL RESIDENTIAL",null,null,null,null,null,null,null,"Rate Rider for Disposition of Global Adjustment Sub-Account (2012) - effective until April 30, 2016 Applicable only for Non-RPP Customers",null,null,null,null,null,null,null,null,null,null,null,null,null,null,null,null,null,null,null,null,null,null,null,null,null,null,null,null,"Woodstock Hydro Services Inc.","Veridian Connections Inc.",null,"SEASONAL RESIDENTIAL","kWh"]
["SEASONAL RESIDENTIAL - HIGH DENSITY [R3]",null,null,null,null,null,null,null,"Rate Rider for Disposition of Global Adjustment Sub-Account (2012) - effective until January 31, 2014. Applicable only for Non-RPP Customers",null,null,null,null,null,null,null,null,null,null,null,null,null,null,null,null,null,null,null,null,null,null,null,null,null,null,null,null,null,"Veridian Connections Inc. - Gravenhurst",null,"SENTINEL LIGHTING","kW"]
["SEASONAL RESIDENTIAL - NORMAL DENSITY [R4]",null,null,null,null,null,null,null,"Rate Rider for Disposition of Global Adjustment Sub-Account (2012) - effective until June 30, 2014 Applicable only for Non-RPP Customers",null,null,null,null,null,null,null,null,null,null,null,null,null,null,null,null,null,null,null,null,null,null,null,null,null,null,null,null,null,"Wasaga Distribution Inc.",null,"SMALL COMMERCIAL AND USL - PER CONNECTION","kW"]
["SENTINEL LIGHTING",null,null,null,null,null,null,null,"Rate Rider for Disposition of Global Adjustment Sub-Account (2012) Applicable only for Non-RPP Customers - effective until August 31, 2014",null,null,null,null,null,null,null,null,null,null,null,null,null,null,null,null,null,null,null,null,null,null,null,null,null,null,null,null,null,"Waterloo North Hydro Inc.",null,"SMALL COMMERCIAL AND USL - PER METER","kW"]
["SMALL COMMERCIAL AND USL - PER CONNECTION",null,null,null,null,null,null,null,"Rate Rider for Disposition of Global Adjustment Sub-Account (2012) Applicable only to Non-RPP Customers - effective until August 31, 2014",null,null,null,null,null,null,null,null,null,null,null,null,null,null,null,null,null,null,null,null,null,null,null,null,null,null,null,null,null,"Welland Hydro-Electric System Corp.",null,"STANDARD A GENERAL SERVICE AIR ACCESS","kW"]
["SMALL COMMERCIAL AND USL - PER METER",null,null,null,null,null,null,null,"Rate Rider for Disposition of Global Adjustment Sub-Account (2013) - effective until April 30, 2014 Applicable only for Non-RPP Customers",null,null,null,null,null,null,null,null,null,null,null,null,null,null,null,null,null,null,null,null,null,null,null,null,null,null,null,null,null,"Wellington North Power Inc.",null,"STANDARD A GENERAL SERVICE ROAD/RAIL","kW"]
["STANDARD A GENERAL SERVICE AIR ACCESS",null,null,null,null,null,null,null,"Rate Rider for Disposition of Global Adjustment Sub-Account (2013) - effective until April 30, 2015 Applicable only for Non-RPP Customers",null,null,null,null,null,null,null,null,null,null,null,null,null,null,null,null,null,null,null,null,null,null,null,null,null,null,null,null,null,"West Coast Huron Energy Inc.",null,"STANDARD A RESIDENTIAL AIR ACCESS","kW"]
["STANDARD A GENERAL SERVICE ROAD/RAIL",null,null,null,null,null,null,null,"Rate Rider for Disposition of Global Adjustment Sub-Account (2013) - effective until April 30, 2015 Applicable only for Non-RPP Customers and excluding Wholesale Market Participants",null,null,null,null,null,null,null,null,null,null,null,null,null,null,null,null,null,null,null,null,null,null,null,null,null,null,null,null,null,"West Perth Power Inc.",null,"STANDARD A RESIDENTIAL ROAD/RAIL","kW"]
["STANDARD A GRID CONNECTED",null,null,null,null,null,null,null,"Rate Rider for Disposition of Global Adjustment Sub-Account (2013) - effective until April 30, 2017 Applicable only for Non-RPP Customers",null,null,null,null,null,null,null,null,null,null,null,null,null,null,null,null,null,null,null,null,null,null,null,null,null,null,null,null,null,"Westario Power Inc.",null,"STANDBY - GENERAL SERVICE 1,000 - 5,000 KW","kW"]
["STANDARD A RESIDENTIAL AIR ACCESS",null,null,null,null,null,null,null,"Rate Rider For Disposition of Global Adjustment Sub-Account (2013) - effective until August 31, 2014 Applicable only for Non-RPP Customers",null,null,null,null,null,null,null,null,null,null,null,null,null,null,null,null,null,null,null,null,null,null,null,null,null,null,null,null,null,"Whitby Hydro Electric Corporation",null,"STANDBY - GENERAL SERVICE 50 - 1,000 KW","kW"]
["STANDARD A RESIDENTIAL ROAD/RAIL",null,null,null,null,null,null,null,"Rate Rider for Disposition of Global Adjustment Sub-Account (2013) - effective until December 31, 2014 Applicable only for Non-RPP Customers",null,null,null,null,null,null,null,null,null,null,null,null,null,null,null,null,null,null,null,null,null,null,null,null,null,null,null,null,null,"Woodstock Hydro Services Inc.",null,"STANDBY - LARGE USE","kW"]
["STANDBY - GENERAL SERVICE 1,000 - 5,000 KW",null,null,null,null,null,null,null,"Rate Rider for Disposition of Global Adjustment Sub-Account (2013) - effective until May 31, 2014 Applicable only for Non-RPP Customers",null,null,null,null,null,null,null,null,null,null,null,null,null,null,null,null,null,null,null,null,null,null,null,null,null,null,null,null,null,null,null,"STANDBY DISTRIBUTION SERVICE","kW"]
["STANDBY - GENERAL SERVICE 50 - 1,000 KW",null,null,null,null,null,null,null,"Rate Rider for Disposition of Global Adjustment Sub-Account (2014) - effective until December 31, 2014. Applicable only for Non-RPP - Class B Customers",null,null,null,null,null,null,null,null,null,null,null,null,null,null,null,null,null,null,null,null,null,null,null,null,null,null,null,null,null,null,null,"STANDBY POWER - APPROVED ON AN INTERIM BASIS","kW"]
["STANDBY - LARGE USE",null,null,null,null,null,null,null,"Rate Rider for Disposition of Global Adjustment Sub-Account (2014) - effective until December 31, 2014. Applicable only for Non-RPP Customers",null,null,null,null,null,null,null,null,null,null,null,null,null,null,null,null,null,null,null,null,null,null,null,null,null,null,null,null,null,null,null,"STANDBY POWER GENERAL SERVICE 1,500 TO 4,999 KW","kW"]
["STANDBY DISTRIBUTION SERVICE",null,null,null,null,null,null,null,"Rate Rider for Disposition of Global Adjustment Sub-Account (2014) - effective until December 31, 2014. Applicable only for Non-RPP Customers - Class A Customers",null,null,null,null,null,null,null,null,null,null,null,null,null,null,null,null,null,null,null,null,null,null,null,null,null,null,null,null,null,null,null,"STANDBY POWER GENERAL SERVICE 50 TO 1,499 KW","kW"]
["STANDBY POWER",null,null,null,null,null,null,null,"Rate Rider for Disposition of Global Adjustment Sub-Account (2014) - effective until December 31, 2014. Applicable only for Non-RPP Customers - Interval Metered",null,null,null,null,null,null,null,null,null,null,null,null,null,null,null,null,null,null,null,null,null,null,null,null,null,null,null,null,null,null,null,"STANDBY POWER GENERAL SERVICE LARGE USE","kW"]
["STANDBY POWER - APPROVED ON AN INTERIM BASIS",null,null,null,null,null,null,null,"Rate Rider for Disposition of Global Adjustment Sub-Account (2014) - effective until December 31, 2014. Applicable only for Non-RPP Customers - Non Interval Metered",null,null,null,null,null,null,null,null,null,null,null,null,null,null,null,null,null,null,null,null,null,null,null,null,null,null,null,null,null,null,null,"STANDBY POWER","kW"]
["STANDBY POWER GENERAL SERVICE 1,500 TO 4,999 KW",null,null,null,null,null,null,null,"Rate Rider for Disposition of Post Retirement Actuarial Gain - effective until March 31, 2025",null,null,null,null,null,null,null,null,null,null,null,null,null,null,null,null,null,null,null,null,null,null,null,null,null,null,null,null,null,null,null,"STREET LIGHTING","kWh"]
["STANDBY POWER GENERAL SERVICE 50 TO 1,499 KW",null,null,null,null,null,null,null,"Rate Rider for Disposition of Residual Hisotrical Smart Meter Costs - effective until April 30, 2015",null,null,null,null,null,null,null,null,null,null,null,null,null,null,null,null,null,null,null,null,null,null,null,null,null,null,null,null,null,null,null,"SUB TRANSMISSION [ST]","kW"]
["STANDBY POWER GENERAL SERVICE LARGE USE",null,null,null,null,null,null,null,"Rate Rider for Disposition of Residual Hisotrical Smart Meter Costs - effective until April 30, 2017",null,null,null,null,null,null,null,null,null,null,null,null,null,null,null,null,null,null,null,null,null,null,null,null,null,null,null,null,null,null,null,"UNMETERED SCATTERED LOAD","kWh"]
["STREET LIGHTING",null,null,null,null,null,null,null,"Rate Rider for Disposition of Residual Historical Smart Meter Costs - effective until April 30, 2014",null,null,null,null,null,null,null,null,null,null,null,null,null,null,null,null,null,null,null,null,null,null,null,null,null,null,null,null,null,null,null,"URBAN GENERAL SERVICE DEMAND BILLED (50 KW AND ABOVE) [UGD]","kW"]
["SUB TRANSMISSION [ST]",null,null,null,null,null,null,null,"Rate Rider for Disposition of Residual Historical Smart Meter Costs - effective until April 30, 2016",null,null,null,null,null,null,null,null,null,null,null,null,null,null,null,null,null,null,null,null,null,null,null,null,null,null,null,null,null,null,null,"URBAN GENERAL SERVICE ENERGY BILLED (LESS THAN 50 KW) [UGE]","kWh"]
["UNMETERED SCATTERED LOAD",null,null,null,null,null,null,null,"Rate Rider for Disposition of Residual Historical Smart Meter Costs - effective until August 31, 2014",null,null,null,null,null,null,null,null,null,null,null,null,null,null,null,null,null,null,null,null,null,null,null,null,null,null,null,null,null,null,null,"WESTPORT SEWAGE TREATMENT PLANT","kW"]
["URBAN GENERAL SERVICE DEMAND BILLED (50 KW AND ABOVE) [UGD]",null,null,null,null,null,null,null,"Rate Rider for Disposition of Residual Historical Smart Meter Costs - effective until August 31, 2015",null,null,null,null,null,null,null,null,null,null,null,null,null,null,null,null,null,null,null,null,null,null,null,null,null,null,null,null,null,null,null,"YEAR-ROUND RESIDENTIAL - R2","kWh"]
["URBAN GENERAL SERVICE ENERGY BILLED (LESS THAN 50 KW) [UGE]",null,null,null,null,null,null,null,"Rate Rider for Disposition of Residual Historical Smart Meter Costs - effective until December 31, 2014"]
["WESTPORT SEWAGE TREATMENT PLANT",null,null,null,null,null,null,null,"Rate Rider for Disposition of Residual Historical Smart Meter Costs – effective until December 31, 2014"]
["YEAR-ROUND RESIDENTIAL - R2",null,null,null,null,null,null,null,"Rate Rider for Disposition of Residual Historical Smart Meter Costs - effective until December 31, 2015"]
[null,null,null,null,null,null,null,null,"Rate Rider for Disposition of Residual Historical Smart Meter Costs - effective until December 31, 2016"]
[null,null,null,null,null,null,null,null,"Rate Rider for Disposition of Residual Historical Smart Meter Costs - effective until October 31, 2014"]
[null,null,null,null,null,null,null,null,"Rate Rider for Disposition of Residual Historical Smart Meter Costs - effective until September 30, 2014"]
[null,null,null,null,null,null,null,null,"Rate Rider for Disposition of Residual Historical Smart Meter Costs - Non-Interval Metered \n - effective until April 30, 2014"]
[null,null,null,null,null,null,null,null,"Rate Rider for Disposition of Residual Historical Smart Meter Costs 2 - in effect until the effective \n date of the next cost of service-based rate order"]
[null,null,null,null,null,null,null,null,"Rate Rider for Disposition of Residual Historical Smart Meter Costs 3 - in effect until the effective \n date of the next cost of service-based rate order"]
[null,null,null,null,null,null,null,null,"Rate Rider for Disposition of Residual Incremental Historical Smart Meter Costs - \n effective until August 31, 2015"]
[null,null,null,null,null,null,null,null,"Rate Rider for Disposition of Stranded Meter costs - effective until April 30, 2015"]
[null,null,null,null,null,null,null,null,"Rate Rider for Disposition of Stranded Meter Costs - effective until April 30, 2016"]
[null,null,null,null,null,null,null,null,"Rate Rider for Disposition of Stranded Meter Costs - effective until April 30, 2017"]
[null,null,null,null,null,null,null,null,"Rate Rider for Global Adjustment Sub Account Disposition - effective until April 30, 2016 Applicable only for Non RPP Customers"]
[null,null,null,null,null,null,null,null,"Rate Rider for Global Adjustment Sub-Account Disposition \n Applicable only for Non-RPP Customers – effective until April 30, 2015"]
[null,null,null,null,null,null,null,null,"Rate Rider for Global Adjustment Sub-Account Disposition (2014) - effective until April 28, 2016 Applicable only for Non-RPP Customers"]
[null,null,null,null,null,null,null,null,"Rate Rider for Global Adjustment Sub-Account Disposition (2014) - effective until April 30, 2015 Applicable only for Non-RPP Customers"]
[null,null,null,null,null,null,null,null,"Rate Rider for Global Adjustment Sub-Account Disposition (2014) - effective until December 30, 2015 Applicable only for Non-RPP Customers"]
[null,null,null,null,null,null,null,null,"Rate Rider for Global Adjustment Sub-Account Disposition (2014) - effective until December 31, 2014 Applicable only for Non-RPP Customers"]
[null,null,null,null,null,null,null,null,"Rate Rider for Global Adjustment Sub-Account Disposition (2014) - effective until December 31, 2015 Applicable only for Non-RPP Customers"]
[null,null,null,null,null,null,null,null,"Rate Rider for Global Adjustment Sub-Account Disposition (2014) - effective until December, 2015 Applicable only for Non-RPP Customers"]
[null,null,null,null,null,null,null,null,"Rate Rider for Incremental Capital - Distribution Volumetric - effective until April 30, 2016"]
[null,null,null,null,null,null,null,null,"Rate Rider for Incremental Capital - Service Charge - effective until April 30, 2016"]
[null,null,null,null,null,null,null,null,"Rate Rider for Incremental Capital (2012) - effective until April 30, 2015"]
[null,null,null,null,null,null,null,null,"Rate Rider for Lost Revenue Adjustment Mechanism Variance Account (LRAMVA) Recovery \n (2012 CDM Activities) - effective until April 30, 2015"]
[null,null,null,null,null,null,null,null,"Rate Rider for Recover of Residual Historical Smart meter Costs - effective until June 30, 2014"]
[null,null,null,null,null,null,null,null,"Rate Rider for Recovery of CGAAP/CWIP Differential - in effect until December 31, 2016"]
[null,null,null,null,null,null,null,null,"Rate Rider for Recovery of Foregone Revenue - effective until April 30, 2015"]
[null,null,null,null,null,null,null,null,"Rate Rider for Recovery of Forgone Revenue - effective until April 30, 2015"]
[null,null,null,null,null,null,null,null,"Rate Rider for Recovery of Forgone Revenue - effective until December 31, 2014"]
[null,null,null,null,null,null,null,null,"Rate Rider for Recovery of Green Energy Act related costs - effective until December 31, 2014"]
[null,null,null,null,null,null,null,null,"Rate Rider for Recovery of Incremental Capital (2013) - in effect until the effective date of the next cost of service-based rate order"]
[null,null,null,null,null,null,null,null,"Rate Rider for Recovery of Incremental Capital (2013) - in effect until the effective date of the\n next cost of service-based rate order"]
[null,null,null,null,null,null,null,null,"Rate Rider for Recovery of Incremental Capital (2013) (per connection) - in effect until the effective date of \n the next cost of service-based rate order"]
[null,null,null,null,null,null,null,null,"Rate Rider for Recovery of Incremental Capital (2013) (per connection)- in effect until the effective date of the next cost of service-based rate order"]
[null,null,null,null,null,null,null,null,"Rate Rider for Recovery of Incremental Capital Costs"]
[null,null,null,null,null,null,null,null,"Rate Rider for Recovery of Incremental Capital Costs - effective until April 30, 2015"]
[null,null,null,null,null,null,null,null,"Rate Rider for Recovery of Lost Revenue Adjustment Mechanism ( LRAM)/Shared Savings Mechanism (SSM) (2012) - effective until August 31, 2014"]
[null,null,null,null,null,null,null,null,"Rate Rider for Recovery of Lost Revenue Adjustment Mechanism (2013) - effective until December 31, 2014"]
[null,null,null,null,null,null,null,null,"Rate Rider for Recovery of Lost Revenue Adjustment Mechanism (LRAM) - effective until April 30, 2016"]
[null,null,null,null,null,null,null,null,"Rate Rider for Recovery of Lost Revenue Adjustment Mechanism (LRAM) (pre-2011 CDM Activities) - effective until April 30, 2015"]
[null,null,null,null,null,null,null,null,"Rate Rider for Recovery of Lost Revenue Adjustment Mechanism (LRAM) (pre-2011 CDM Activities) (2013) - effective until April 30, 2015"]
[null,null,null,null,null,null,null,null,"Rate Rider for Recovery of Lost Revenue Adjustment Mechanism (LRAM)/Shared Savings"]
[null,null,null,null,null,null,null,null,"Rate Rider for Recovery of Lost Revenue Adjustment Mechanism (LRAM)/Shared Savings Mechanism (SSM) - effective until December 31, 2014 and applicable in the service area excluding the former service area of Clinton Power"]
[null,null,null,null,null,null,null,null,"Rate Rider for Recovery of Lost Revenue Adjustment Mechanism (LRAM)/Shared Savings Mechanism (SSM) - effective until December 31, 2014 and applicable in the service area excluding the former service areas of Clinton Power and West Perth Power"]
[null,null,null,null,null,null,null,null,"Rate Rider for Recovery of Lost Revenue Adjustment Mechanism (LRAM)/Shared Savings Mechanism (SSM) - effective until December 31, 2014 and applicable only in the former service area of Clinton Power"]
[null,null,null,null,null,null,null,null,"Rate Rider for Recovery of Lost Revenue Adjustment Mechanism (LRAM)/Shared Savings Mechanism (SSM) - effective until December 31, 2014 and applicable only in the former service area of West Perth Power"]
[null,null,null,null,null,null,null,null,"Rate Rider for Recovery of Lost Revenue Adjustment Mechanism (LRAM)/Shared Savings Mechanism (SSM) - effective until March 31, 2016"]
[null,null,null,null,null,null,null,null,"Rate Rider for Recovery of Lost Revenue Adjustment Mechanism (LRAM)/Shared Savings Mechanism (SSM) (2012) - effective until August 31, 2014"]
[null,null,null,null,null,null,null,null,"Rate Rider for Recovery of Lost Revenue Adjustment Mechanism (LRAM)/Shared Savings Mechanism (SSM) Recovery - effective until April 30, 2015"]
[null,null,null,null,null,null,null,null,"Rate Rider for Recovery of Lost Revenue Adjustment Mechanism Variance Account (LRAMVA) (2014) - effective until April 30, 2015"]
[null,null,null,null,null,null,null,null,"Rate Rider for Recovery of Residual Historical Smart Meter Costs - effective July 1, 2012 - April 30, 2016"]
[null,null,null,null,null,null,null,null,"Rate Rider for Recovery of Smart Meter Incremental Revenue Requirement - effective until the date of the next cost of service-based rate order"]
[null,null,null,null,null,null,null,null,"Rate Rider for Recovery of Smart Meter Incremental Revenue Requirement - effective until the effective date of the next cost of service-based rate order, or October 31, 2017, whichever occurs earlier"]
[null,null,null,null,null,null,null,null,"Rate Rider for Recovery of Smart Meter Incremental Revenue Requirement - in effect until the effective date of the next cost of service-based rate order"]
[null,null,null,null,null,null,null,null,"Rate Rider for Recovery of Smart Meter Incremental Revenue Requirement - Non-Interval Metered - in effect until the effective date of the next cost of service-based rate order"]
[null,null,null,null,null,null,null,null,"Rate Rider for Recovery of Smart Meter Incremental Revenue Requirements - in effect until the effective date of the next cost of service application"]
[null,null,null,null,null,null,null,null,"Rate Rider for Recovery of Smart Meter Stranded Assets - effective until April 30, 2016"]
[null,null,null,null,null,null,null,null,"Rate Rider for Recovery of Storm Damage Costs - effective until August 31, 2017"]
[null,null,null,null,null,null,null,null,"Rate Rider for Recovery of Stranded Assets - effective until April 30, 2016"]
[null,null,null,null,null,null,null,null,"Rate Rider for Recovery of Stranded Meter Assets - effective July 1, 2012 - April 30, 2016"]
[null,null,null,null,null,null,null,null,"Rate Rider for Recovery of Stranded Meter Assets – effective until April 30, 2015"]
[null,null,null,null,null,null,null,null,"Rate Rider for Recovery of Stranded Meter Assets - effective until April 30, 2016"]
[null,null,null,null,null,null,null,null,"Rate Rider for Recovery of Stranded Meter Assets - effective until April 30, 2017"]
[null,null,null,null,null,null,null,null,"Rate Rider for Recovery of Stranded Meter Assets - effective until August 31, 2015"]
[null,null,null,null,null,null,null,null,"Rate Rider for Recovery of Stranded Meter Assets - effective until August 31, 2017"]
[null,null,null,null,null,null,null,null,"Rate Rider for Recovery of Stranded Meter Assets - effective until December 31, 2014"]
[null,null,null,null,null,null,null,null,"Rate Rider for Recovery of Stranded Meter Assets - effective until December 31, 2015"]
[null,null,null,null,null,null,null,null,"Rate Rider for Recovery of Stranded Meter Assets - effective until June 30, 2016"]
[null,null,null,null,null,null,null,null,"Rate Rider for Recovery of Stranded Meter Assets - effective until March 31, 2016"]
[null,null,null,null,null,null,null,null,"Rate Rider for Recovery of Stranded Meter Assets - effective until May 31, 2014"]
[null,null,null,null,null,null,null,null,"Rate Rider for Reversal of Deferral/Variance Account Disposition (2011) - effective until April 30, 2015"]
[null,null,null,null,null,null,null,null,"Rate Rider for Smart Meter Disposition - effective until April 30, 2016"]
[null,null,null,null,null,null,null,null,"Rate Rider for Smart Meter Incremental Revenue Requirement - in effect until the effective date of the next cost of service-based rate order"]
[null,null,null,null,null,null,null,null,"Rate Rider for Smart Metering Entity Charge - effective until October 31, 2018"]
[null,null,null,null,null,null,null,null,"Rate Rider for Stranded Meter Cost Recovery - effective until April 30, 2017"]
[null,null,null,null,null,null,null,null,"Rate Rider for Tax Change"]
[null,null,null,null,null,null,null,null,"Rate Rider for Tax Change - effective until April 30, 2015"]
[null,null,null,null,null,null,null,null,"Rate Rider for Tax Change (2014) - effective until April 30, 2015"]
[null,null,null,null,null,null,null,null,"Retail Transmission Rate - Line and Transformation Connection Service Rate"]
[null,null,null,null,null,null,null,null,"Retail Transmission Rate - Line and Transformation Connection Service Rate - (less than 1,000 kW)"]
[null,null,null,null,null,null,null,null,"Retail Transmission Rate - Line and Transformation Connection Service Rate - Interval Metered"]
[null,null,null,null,null,null,null,null,"Retail Transmission Rate - Line and Transformation Connection Service Rate - Interval Metered (1,000 to 4,999 kW)"]
[null,null,null,null,null,null,null,null,"Retail Transmission Rate - Line and Transformation Connection Service Rate - Interval Metered (less than 1,000 kW)"]
[null,null,null,null,null,null,null,null,"Retail Transmission Rate - Line and Transformation Connection Service Rate - Interval Metered < 1,000 kW"]
[null,null,null,null,null,null,null,null,"Retail Transmission Rate - Line and Transformation Connection Service Rate - Interval Metered > 1,000 kW"]
[null,null,null,null,null,null,null,null,"Retail Transmission Rate - Line and Transformation Connection Service Rate FOR ALL SERVICE AREAS EXCEPT HENSALL"]
[null,null,null,null,null,null,null,null,"Retail Transmission Rate - Line Connection Service Rate"]
[null,null,null,null,null,null,null,null,"Retail Transmission Rate - Network Service Rate"]
[null,null,null,null,null,null,null,null,"Retail Transmission Rate - Network Service Rate - (less than 1,000 kW)"]
[null,null,null,null,null,null,null,null,"Retail Transmission Rate - Network Service Rate - Interval Metered"]
[null,null,null,null,null,null,null,null,"Retail Transmission Rate - Network Service Rate - Interval Metered (1,000 to 4,999 kW)"]
[null,null,null,null,null,null,null,null,"Retail Transmission Rate - Network Service Rate - Interval Metered (less than 1,000 kW)"]
[null,null,null,null,null,null,null,null,"Retail Transmission Rate - Network Service Rate - Interval Metered > 1,000 kW"]
[null,null,null,null,null,null,null,null,"Retail Transmission Rate - Transformation Connection Service Rate"]
[null,null,null,null,null,null,null,null,"Rider for Global Adjustment Sub-Account Disposition (2012) - effective until April 30, 2016 Applicable only for Non-RPP Customers"]
[null,null,null,null,null,null,null,null,"Rural or Remote Electricity Rate Protection Charge (RRRP)"]
[null,null,null,null,null,null,null,null,"Sentinel lights (dusk-to-dawn) connected to unmetered wires will have a flat rate monthly energy charge added to the regular customer bill. Further servicing details are available in the distributor’s Conditions of Service."]
[null,null,null,null,null,null,null,null,"Service Charge"]
[null,null,null,null,null,null,null,null,"Service Charge (per connection)"]
[null,null,null,null,null,null,null,null,"Service Charge (per customer)"]
[null,null,null,null,null,null,null,null,"Service Charge (per light)"]
[null,null,null,null,null,null,null,null,"Smart Grid Funding Adder (2014) - in effect until December 31, 2014"]
[null,null,null,null,null,null,null,null,"Smart Meter Disposition Rider"]
[null,null,null,null,null,null,null,null,"Smart Meter Entity Charge"]
[null,null,null,null,null,null,null,null,"Smart Meter Incremental Revenue Requirement Rate Rider"]
[null,null,null,null,null,null,null,null,"Standard Supply Service - Administrative Charge (if applicable)"]
[null,null,null,null,null,null,null,null,"Standby Charge - for a month where standby power is not provided, the charge is based on the applicable General Service 50 to 4,999 kW or Large Use Distribution Volumetric Charge applied to the contracted amount (e.g. Nameplate rating of generating facility)."]
[null,null,null,null,null,null,null,null,"Standby Charge - for a month where standby power is not provided. The charge is applied to the amount of reserved load transfer capacity contracted or the amount of monthly peak load displaced by a generating facility"]
[null,null,null,null,null,null,null,null,"Standby Charge - for a month where standby power is not provided. The charge is applied to the contracted amount (e.g. nameplate rating of the generation facility)."]
[null,null,null,null,null,null,null,null,"Wholesale Market Service Rate"]

{"sheet":"lists2","index":9,"n_rows":187,"n_cols":4,"rows_kept":187,"cut":false,"hidden":true,"merged":[[0,0,0,3],[48,0,48,5],[94,0,94,1],[95,0,95,1],[96,0,96,1],[97,0,97,1],[125,0,125,1],[126,0,126,1],[127,0,127,1],[2,0,2,3],[5,0,5,3],[6,0,6,3],[7,0,7,3],[8,0,8,3],[37,0,37,1],[38,0,38,1],[39,0,39,1],[40,0,40,1],[41,0,41,1],[45,0,45,1],[47,0,47,1],[30,0,30,1],[31,0,31,1],[32,0,32,1],[192,0,192,1],[193,0,193,1],[194,0,194,1],[186,0,186,3],[186,4,186,7],[160,0,160,3],[160,4,160,7],[161,0,161,3],[161,4,161,7],[162,0,162,3],[162,4,162,7],[163,0,163,3],[163,4,163,7],[164,0,164,3],[164,4,164,7],[165,0,165,3],[165,4,165,7],[166,0,166,3],[166,4,166,7],[167,0,167,3],[181,0,181,1],[182,0,182,1],[189,0,189,1],[167,4,167,7],[191,0,191,1],[144,0,144,1],[145,0,145,1],[146,0,146,1],[147,0,147,1],[168,0,168,3],[178,0,178,1],[179,0,179,1],[180,0,180,1],[175,0,175,1],[176,0,176,1],[177,0,177,1],[172,0,172,1],[173,0,173,1],[174,0,174,1],[33,0,33,1],[34,0,34,1],[35,0,35,1],[54,0,54,1],[190,0,190,1],[110,0,110,1],[111,0,111,1],[112,0,112,1],[113,0,113,1],[114,0,114,1],[115,0,115,1],[116,0,116,1],[117,0,117,1],[118,0,118,1],[119,0,119,1],[120,0,120,1],[121,0,121,1],[122,0,122,1],[123,0,123,1],[124,0,124,1],[55,0,55,1],[56,0,56,1],[57,0,57,1],[63,0,63,3],[12,0,12,1],[13,0,13,1],[14,0,14,1],[15,0,15,1],[16,0,16,1],[17,0,17,1],[18,0,18,1],[19,0,19,1],[20,0,20,1],[21,0,21,1],[22,0,22,1],[23,0,23,1],[24,0,24,1],[25,0,25,1],[26,0,26,1],[27,0,27,1],[28,0,28,1],[29,0,29,1],[36,0,36,1],[46,0,46,1],[65,0,65,3],[65,4,65,7],[67,0,67,3],[67,4,67,7],[71,0,71,1],[72,0,72,1],[73,0,73,1],[74,0,74,1],[75,0,75,1],[76,0,76,1],[77,0,77,1],[78,0,78,1],[79,0,79,1],[80,0,80,1],[81,0,81,1],[82,0,82,1],[83,0,83,1],[84,0,84,1],[85,0,85,1],[86,0,86,1],[87,0,87,1],[88,0,88,1],[89,0,89,1],[90,0,90,1],[91,0,91,1],[92,0,92,1],[93,0,93,1],[98,0,98,1],[99,0,99,1],[100,0,100,1],[101,0,101,1],[102,0,102,1],[103,0,103,1],[104,0,104,1],[105,0,105,1],[109,0,109,1],[137,0,137,1],[138,0,138,1],[139,0,139,1],[140,0,140,1],[141,0,141,1],[142,0,142,1],[143,0,143,1],[129,0,129,1],[130,0,130,1],[132,0,132,1],[133,0,133,1],[131,0,131,1],[128,0,128,1],[136,0,136,1],[168,4,168,7],[170,0,170,1],[170,4,170,5],[171,0,171,1],[148,0,148,1],[149,0,149,1],[150,0,150,1],[151,0,151,1],[153,0,153,1],[154,0,154,1],[155,0,155,1],[156,0,156,1],[152,0,152,1]]}
["RESIDENTIAL Service Classification"]
[]
[]
["APPLICATION"]
[]
[]
[]
[]
[]
[]
["MONTHLY RATES AND CHARGES - Delivery Component"]
[]
[]
[]
[]
[]
[]
[]
[]
[]
[]
[]
[]
[]
[]
[]
[]
[]
[]
[]
[]
[]
[]
[]
[]
[]
[]
[]
[]
[]
[]
[]
[]
["MONTHLY RATES AND CHARGES - Regulatory Component"]
[]
["Wholesale Market Service Rate",null,"$/kWh",4.4000000000000003E-3]
["Rural Rate Protection Charge",null,"$/kWh",1.2999999999999999E-3]
["Standard Supply Service - Administrative Charge (if applicable)",null,"$",0.25]
[]
[]
[]
[]
["ALLOWANCES"]
[]
["Transformer Allowance for Ownership - per kW of billing demand/month"]
[]
[]
["Primary Metering Allowance for transformer losses – applied to measured demand and energy"]
[]
["SPECIFIC SERVICE CHARGES"]
[]
["APPLICATION"]
[]
["The application of these rates and charges shall be in accordance with the Licence of the Distributor and any Code or Order of the Board, and amendments thereto as approved by the Board, which may be applicable to the administration of this schedule."]
[]
["No charges to meet the costs of any work or service done or furnished for the purpose of the distribution of electricity shall be made except as permitted by this schedule, unless required by the Distributor’s Licence or a Code or Order of the Board, and amendments thereto as approved by the Board, or as specified herein."]
[]
["It should be noted that this schedule does not list any charges, assessments or credits that are required by law to be invoiced by a distributor and that are not subject to Board approval, such as the Debt Retirement Charge, the Global Adjustment, the Ontario Clean Energy Benefit and the HST."]
[]
["Customer Administration"]
[]
[]
[]
[]
[]
[]
[]
[]
[]
[]
[]
[]
[]
[]
[]
[]
[]
[]
[]
[]
[]
[]
[]
[]
[]
[]
[]
[]
[]
[]
[]
[]
[]
[]
[]
[]
[]
["Non-Payment of Account"]
[]
[]
[]
[]
[]
[]
[]
[]
[]
[]
[]
[]
[]
[]
[]
[]
[]
[]
[]
[]
[]
[]
[]
[]
[]
[]
[]
[]
[]
[]
[]
[]
[]
[]
[]
[]
[]
[]
[]
[]
[]
[]
[]
[]
[]
[]
[]
[]
[]
[]
["RETAIL SERVICE CHARGES (if applicable)"]
[]
["The application of these rates and charges shall be in accordance with the Licence of the Distributor and any Code or Order of the Board, and amendments thereto as approved by the Board, which may be applicable to the administration of this schedule."]
[]
["No rates and charges for the distribution of electricity and charges to meet the costs of any work or service done or furnished for the purpose of the distribution of electricity shall be made except as permitted by this schedule, unless required by the Distributor’s Licence or a Code or Order of the Board, and amendments thereto as approved by the Board, or as specified herein."]
[]
["Unless specifically noted, this schedule does not contain any charges for the electricity commodity, be it under the Regulated Price Plan, a contract with a retailer or the wholesale market price, as applicable."]
[]
["It should be noted that this schedule does not list any charges, assessments or credits that are required by law to be invoiced by a distributor and that are not subject to Board approval, such as the Debt Retirement Charge, the Global Adjustment, the Ontario Clean Energy Benefit and the HST."]
[]
["Retail Service Charges refer to services provided by a distributor to retailers or customers related to the supply of competitive electricity."]
[]
["One-time charge, per retailer, to establish the service agreement between the distributor and the retailer",null,"$",100]
["Monthly Fixed Charge, per retailer",null,"$",20]
["Monthly Variable Charge, per customer, per retailer",null,"$/cust.",0.5]
["Distributor-consolidated billing monthly charge, per customer, per retailer",null,"$/cust.",0.3]
["Retailer-consolidated billing monthly credit, per customer, per retailer",null,"$/cust.",-0.3]
["Service Transaction Requests (STR) "]
["Request fee, per request, applied to the requesting party",null,"$",0.25]
["Processing fee, per request, applied to the requesting party",null,"$",0.5]
["Request for customer information as outlined in Section 10.6.3 and Chapter 11 of the Retail"]
["Settlement Code directly to retailers and customers, if not delivered electronically through the"]
["Electronic Business Transaction (EBT) system, applied to the requesting party "]
["Up to twice a year",null,"$","no charge"]
["More than twice a year, per request (plus incremental delivery costs)",null,"$",2]
[]
["LOSS FACTORS"]
[]
["If the distributor is not capable of prorating changed loss factors jointly with distribution rates, the revised loss factors will be implemented upon the first subsequent billing for each billing cycle."]

{"sheet":"Sheet19","index":10,"n_rows":72,"n_cols":9,"rows_kept":72,"cut":false,"hidden":true,"merged":[]}
[null,"CGAAP","CGAAP","CGAAP","MIFRS","USGAAP","ASPE","ASPE","ASPE"]
[null,"N/A",2012,2013,null,null,"N/A",2012,2013]
["LDC Info","x","x","x","x","x","x","x","x"]
["Table of Contents","x","x","x","x","x","x","x","x"]
["COS Flowchart","x","x","x","x","x","x","x","x"]
["List of Key References","x","x","x","x","x","x","x","x"]
["App.2-AA_Capital Projects","x","x","x","x","x","x","x","x"]
["App.2-AB_Capital Expenditures","x","x","x","x","x","x","x","x"]
["App.2-BA1_Fix Asset Cont.CGAAP","x","x","x","n","x","x","x","x"]
["App.2-BA2_Fix Asset Cont.MIFRS","n","n","n","x","n","n","n","n"]
["Appendix 2-BB Service Life Comp","x","x","x","x","x","x","x","x"]
["Instruction for App. 2-C MIFRS","n","n","n","x","n","n","n","n"]
["App.2-CA_CGAAP_DepExp_2011","n","n","n","x","n","n","n","n"]
["App.2-CB_MIFRS_DepExp_2011","n","n","n","x","n","n","n","n"]
["App.2-CC_MIFRS_DepExp_2012","n","n","n","x","n","n","n","n"]
["App.2-CD_MIFRS_DepExp_2013","n","n","n","x","n","n","n","n"]
["App.2-CE_MIFRS_DepExp_2014","n","n","n","x","n","n","n","n"]
["App.2-CF_CGAAP_DepExp_2012","n","n","n","x","n","n","n","n"]
["App.2-CG_MIFRS_DepExp_2012","n","n","n","x","n","n","n","n"]
["App.2-CH_MIFRS_DepExp_2013","n","n","n","x","n","n","n","n"]
["App.2-CI_MIFRS_DepExp_2014","n","n","n","x","n","n","n","n"]
["App.2-CJ_CGAAP_DepExp_2012","n","n","n","x","n","n","n","n"]
["App.2-CK_CGAAP_DepExp_2013","n","n","n","x","n","n","n","n"]
["App.2-CL_MIFRS_DepExp_2013","n","n","n","x","n","n","n","n"]
["App.2-CM_MIFRS_DepExp_2014","n","n","n","x","n","n","n","n"]
["Instruction for App. 2-C CGAAP","x","x","x","n","n","x","x","x"]
["App.2-CN_OldCGAAP_DepExp_2012","x","x","n","n","n","x","x","n"]
["App.2-CO_NewCGAAP_DepExp_2012","x","x","n","n","n","x","x","n"]
["App.2-CP_NewCGAAP_DepExp_2013","x","x","n","n","n","x","x","n"]
["App.2-CQ NewCGAAP_DepExp_2014","x","x","n","n","n","x","x","n"]
["App.2-CR_OldCGAAP_DepExp_2012","x","n","x","n","n","x","n","x"]
["App.2-CS_OldCGAAP_DepExp_2013","x","n","x","n","n","x","n","x"]
["App.2-CT_NewCGAAP_DepExp_2013","x","n","x","n","n","x","n","x"]
["App.2-CU_NewCGAAP_DepExp_2014","x","n","x","n","n","x","n","x"]
["App.2-CV_USGAAP_DepExp","n","n","n","n","x","n","n","n"]
["App.2-DA_Overhead","n","n","n","x","n","n","n","n"]
["App.2-DB_Overhead","x","x","x","n","n","x","x","x"]
["App.2-EA_PP&E Deferral Account","n","n","n","x","x","n","n","n"]
["App.2-EB_PP&E Deferral Account","n","n","n","x","x","n","n","n"]
["App.2-EC_PP&E Deferral Account","n","n","n","x","x","n","n","n"]
["App.2-ED_Account 1576 (2012)","x","x","n","x","x","x","x","n"]
["App.2-EE_Account 1576 (2013)","x","n","x","x","x","x","n","x"]
["App.2-FA Proposed REG Invest.","o","o","o","o","o","o","o","o"]
["App.2-FB Calc of REG Improvemnt","o","o","o","o","o","o","o","o"]
["App.2-FC Calc of REG Expansion","o","o","o","o","o","o","o","o"]
["App.2-G SQI","x","x","x","x","x","x","x","x"]
["App.2-H_Other_Oper_Rev","x","x","x","x","x","x","x","x"]
["App.2-I LF_CDM_WF","x","x","x","x","x","x","x","x"]
["App.2-JA_OM&A_Summary_Analys","x","x","x","x","x","x","x","x"]
["App.2-JB_OM&A_Cost _Drivers","x","x","x","x","x","x","x","x"]
["App.2-JC_OMA Programs","x","x","x","x","x","x","x","x"]
["App.2-K_Employee Costs","x","x","x","x","x","x","x","x"]
["App.2-L_OM&A_per_Cust_FTEE","x","x","x","x","x","x","x","x"]
["App.2-M_Regulatory_Costs","x","x","x","x","x","x","x","x"]
["App.2-N_Corp_Cost_Allocation","x","x","x","x","x","x","x","x"]
["App.2-OA Capital Structure","x","x","x","x","x","x","x","x"]
["App.2-OB_Debt Instruments","x","x","x","x","x","x","x","x"]
["App.2-P_Cost_Allocation","x","x","x","x","x","x","x","x"]
["App.2-Q_Cost of Serv. Emb. Dx","e","e","e","e","e","e","e","e"]
["App.2-R_Loss Factors","x","x","x","x","x","x","x","x"]
["App.2-S_Stranded Meters","x","x","x","x","x","x","x","x"]
["App.2-TA_1592_Tax_Variance","x","x","x","x","x","x","x","x"]
["App.2-TB_1592_HST-OVAT","x","x","x","x","x","x","x","x"]
["App.2-U_IFRS Transition Costs","x","x","x","x","x","x","x","x"]
["App.2-V_Rev_Reconciliation","x","x","x","x","x","x","x","x"]
["App.2-W_Bill Impacts","x","x","x","x","x","x","x","x"]
["App.2-YA_MIFRS Summary Impacts","n","n","n","x","n","n","n","n"]
["App. 2-YB_CGAAP Summary Impacts","x","x","x","n","n","x","x","x"]
["App. 2-Z_Tariff","x","x","x","x","x","x","x","x"]
["lists","n","n","n","n","n","n","n","n"]
["lists2","n","n","n","n","n","n","n","n"]
["Sheet19","n","n","n","n","n","n","n","n"]